{"text_format":"2","workbook":"xlsx","n_sheets":3,"sheets":["Summary Total cost","Al-Iqtedar","Al-Bahja "],"not_rendered":{"charts":0,"images":0,"macros":0,"external_links":0,"defined_names":2,"comments":0,"pivot_tables":0},"unopened":[],"bounds":{"document_bytes":16777216,"sheet_cells":100000,"run_cost":"one","rows_first":2000,"rows_last":500,"rows_between":2000,"halvings":0,"cell_chars":16384,"cell_head_chars":4096},"cells_cut":0,"cells_raw":0,"read":"whole","date_system":"1900"}

{"sheet":"Summary Total cost","index":0,"n_rows":10,"n_cols":6,"rows_kept":10,"cut":false,"hidden":false,"merged":[[2,1,2,4],[9,1,9,4],[4,1,4,4],[3,1,3,5],[5,1,5,5],[6,2,6,4],[7,2,7,4],[8,2,8,4]]}
[]
[]
[null,"Total Cost                                               ",null,null,null,"مجموع الكلفة "]
[null,"Renovation of Al-Eqtedar and Al-Bahja schools in Al-Khalis District, Diyala Governorate"]
[null,"End-User: Directorate of Education, Diyala",null,null,null,"الجهة المستفيدة: مديرية تربية ديالى"]
[null,"مشروع أعادة تأهيل مدرستي الأقتدار والبهجة في قضاء الخالص / محافظة ديالى "]
[null,"No.","Name of school",null,null,"Total estimated  Price per School in USD"]
[null,1,"Renovation of Al-Iqtedar School",null,null,{"$f":"'Al-Iqtedar'!F125","v":0}]
[null,2,"Renovation of Al-Bahja School",null,null,{"$f":"'Al-Bahja '!F225","v":0}]
[null,"A               Total Price Offer",null,null,null,{"$f":"SUM(F8:F9)","v":0}]

{"sheet":"Al-Iqtedar","index":1,"n_rows":125,"n_cols":6,"rows_kept":125,"cut":false,"hidden":false,"merged":[[61,5,62,5],[74,3,75,3],[74,4,75,4],[74,5,75,5],[59,2,60,2],[59,3,60,3],[5,0,6,0],[5,2,6,2],[5,3,6,3],[5,4,6,4],[5,5,6,5],[14,2,15,2],[14,3,15,3],[14,4,15,4],[14,5,15,5],[10,4,11,4],[14,0,15,0],[23,0,24,0],[23,2,24,2],[17,2,18,2],[50,0,51,0],[52,0,53,0],[50,2,51,2],[8,2,9,2],[0,0,0,5],[1,1,1,5],[124,0,124,4],[72,2,73,2],[72,3,73,3],[72,4,73,4],[72,5,73,5],[8,5,9,5],[8,4,9,4],[8,3,9,3],[64,0,65,0],[64,2,65,2],[64,3,65,3],[64,4,65,4],[64,5,65,5],[66,0,67,0],[66,2,67,2],[66,3,67,3],[66,4,67,4],[66,5,67,5],[10,3,11,3],[10,2,11,2],[12,5,13,5],[12,4,13,4],[36,5,37,5],[34,3,35,3],[34,4,35,4],[34,5,35,5],[30,2,31,2],[30,3,31,3],[30,4,31,4],[30,5,31,5],[21,5,22,5],[26,3,27,3],[19,5,20,5],[26,2,27,2],[32,3,33,3],[32,4,33,4],[10,5,11,5],[17,3,18,3],[17,4,18,4],[23,3,24,3],[23,4,24,4],[23,5,24,5],[12,3,13,3],[12,2,13,2],[17,5,18,5],[32,5,33,5],[48,5,49,5],[44,3,45,3],[44,4,45,4],[44,5,45,5],[46,5,47,5],[26,4,27,4],[26,5,27,5],[26,0,27,0],[40,3,41,3],[40,4,41,4],[40,5,41,5],[38,3,39,3],[38,4,39,4],[38,5,39,5],[28,0,29,0],[28,3,29,3],[28,4,29,4],[28,5,29,5],[40,2,41,2],[44,2,45,2],[46,2,47,2],[48,2,49,2],[28,2,29,2],[32,2,33,2],[54,5,55,5],[56,3,57,3],[56,4,57,4],[56,5,57,5],[50,3,51,3],[50,4,51,4],[50,5,51,5],[52,2,53,2],[52,3,53,3],[52,4,53,4],[52,5,53,5],[70,5,71,5],[74,0,75,0],[74,2,75,2],[59,0,60,0],[68,0,69,0],[68,2,69,2],[68,3,69,3],[68,4,69,4],[68,5,69,5],[59,4,60,4],[59,5,60,5],[79,0,80,0],[79,2,80,2],[79,3,80,3],[79,4,80,4],[79,5,80,5],[70,0,71,0],[70,2,71,2],[70,3,71,3],[72,0,73,0],[61,0,62,0],[61,2,62,2],[61,3,62,3],[61,4,62,4],[101,5,102,5],[99,0,100,0],[99,2,100,2],[99,3,100,3],[99,4,100,4],[99,5,100,5],[89,4,90,4],[89,5,90,5],[81,0,82,0],[81,2,82,2],[81,3,82,3],[81,4,82,4],[81,5,82,5],[83,0,84,0],[83,2,84,2],[83,3,84,3],[83,4,84,4],[83,5,84,5],[87,0,88,0],[87,2,88,2],[87,3,88,3],[87,4,88,4],[87,5,88,5],[89,0,90,0],[91,5,92,5],[93,0,94,0],[93,2,94,2],[93,3,94,3],[93,4,94,4],[93,5,94,5],[105,4,106,4],[105,5,106,5],[103,0,104,0],[103,2,104,2],[103,3,104,3],[95,0,96,0],[95,2,96,2],[95,3,96,3],[95,4,96,4],[95,5,96,5],[97,0,98,0],[97,2,98,2],[97,3,98,3],[97,4,98,4],[97,5,98,5],[101,2,102,2],[101,3,102,3],[101,4,102,4],[19,0,20,0],[19,2,20,2],[19,3,20,3],[19,4,20,4],[54,0,55,0],[8,0,9,0],[10,0,11,0],[12,0,13,0],[91,0,92,0],[91,2,92,2],[91,3,92,3],[91,4,92,4],[89,2,90,2],[89,3,90,3],[56,0,57,0],[21,0,22,0],[56,2,57,2],[54,2,55,2],[54,3,55,3],[54,4,55,4],[48,3,49,3],[48,4,49,4],[17,0,18,0],[38,2,39,2],[77,0,78,0],[77,2,78,2],[77,3,78,3],[77,4,78,4],[70,4,71,4],[21,2,22,2],[21,3,22,3],[21,4,22,4],[46,3,47,3],[46,4,47,4],[30,0,31,0],[32,0,33,0],[34,0,35,0],[36,0,37,0],[38,0,39,0],[40,0,41,0],[44,0,45,0],[46,0,47,0],[48,0,49,0],[36,3,37,3],[34,2,35,2],[36,2,37,2],[36,4,37,4],[111,0,112,0],[111,2,112,2],[111,3,112,3],[111,4,112,4],[111,5,112,5],[122,0,123,0],[122,2,123,2],[122,3,123,3],[122,4,123,4],[122,5,123,5],[113,0,114,0],[113,2,114,2],[113,3,114,3],[113,4,114,4],[113,5,114,5],[115,0,120,0],[115,2,120,2],[115,3,120,3],[115,4,120,4],[115,5,120,5],[2,0,2,5],[109,4,110,4],[109,5,110,5],[105,0,106,0],[105,2,106,2],[105,3,106,3],[7,1,7,4],[16,1,16,4],[25,1,25,4],[58,1,58,4],[77,5,78,5],[103,4,104,4],[103,5,104,5],[109,0,110,0],[109,2,110,2],[109,3,110,3],[107,0,108,0],[107,2,108,2],[107,3,108,3],[107,4,108,4],[107,5,108,5],[101,0,102,0],[4,1,4,4],[76,1,76,3]]}
["Renovation of Al-Iqtedar School in Al-Khales district/Al-Aswed - Diyala Governorate "]
[null,"جدول الكميات الخاص بترميم مدرسة الاقتدار الواقعة في قضاء الخالص /قرية الاسود"]
["General Note:                                                                                                                                                  1. All works according to the  instructions by the Supervision Engineer or his representative.   \n2.All the materials and equipment's supplied by the Contractor must be of best quality (according to Iraqi standards) and in the case of equipment, in perfect working order. The Contractor must provide samples of material for testing and approval by the Supervision engineer before supplying. \n3.Removal of surplus material from site to an approved dumping area by local authorities.\n4.The Contractor must pay all the costs for the samples including any laboratory tests required."]
["#","Items Descriptions","Unit","Quantity","Unit Price","Total USD"]
["A","                                                 Roof Works                 أعمال التسطيح     "]
[1,"Supply ,remove and reapply new mastic, the works include to remove the old mastic by opening and cleaning the joints . The new mastic shall pass the test according to ASTM C794 and C1521. The price include to prepare a mock up sample for water penetration before applying the material. Also the contractor shall fill the gaps between the concrete slab and the walls with cement and to make chamfer","m2",1300,0,{"$f":"D6*E6","v":0}]
[null,"تجهيز المواد والعدد والعمل على قلع الماستك وتنظيف السطح واعادة الماستك باستخدام ماستك موافق عليه من قبل المهندس المشرف  بعد اجراء الفحص .\nشاملا المد والكي والخبن وعمل حشوات من مونة السمنت عند التقاء البلاطات الكونكريتية مع الستائر."]
["B"," Painting and plastering  Works                            أعمال الصبغ واللبخ     "]
[1,"Supply and paint emulsion paint  (Pentalitepaiant -type Yoqout , Marjan, Atlas or equivalent) the works  include   one prime coat, two putty coats for the entire painted areas and three finishing coats with the color as per supervising engineering instruction.","m2",1900,0,{"$f":"D9*E9","v":0}]
[null,"تجهيز المواد والطلاء بثلاث طبقات من الصبغ المستحلب ( البنتلايت ) من النوعية الممتازة وصبغ الجدران وكذلك السقوف المبيضة بالجص باستخدام البنتلايت 3 طبقات محلي المنشاء الى حد الاشباع ويكون اختيار اللون والتكنيك بحسب توجيهات المهندس المشرف باستخدام اصباغ نوع ياقوت او مرجان او اطلس او  مايعادلها من ناحية الجودة وحسب المواصفات الفنية (يشمل السعر كافة المعالجات اللازمة للسطوح بما يظهرها بمظهر صقيل)"]
[2,"Supply and paint the skirting walls up to 1.2 m height  with oil paint (local paint or equivalent), of one prime  coat(Pentalite paintor or equivalent) ,two putty coats for the entire painted areas undercoat layer and three finishing coats, including preparation works, putty coats all needed to complete the work","m2",500,0,{"$f":"D11*E11","v":0}]
[null,"تجهيز المواد والعدد اللازمة والقيام بالصبغ بالاصباغ الدهنية (البوية المطفية او اللماعة) بثلاث طبقات او حد التغطية  للجدران بارتفاع 1.2 م باستخدام اصباغ الحديثة او ما يعادلها .ويشمل السعر طبقة اساس من البنتلايت المحلي واجراء كافة اعمال التصليح والصقل للجدران المتضررة  قبل عمليه الصبغ وحسب المواصفات الفنية وتوجيهات المهندس المشرف.(للجدران و لسقوف المجاميع الصحية والحانوت والمطابخ ) "]
[3,"Removal the old damaged cements mortar for the interior and exterior walls and celling , however the removal cement mortal shall not effect the walls and ceiling structure  and according of the   supervising engineer instructions","m2",1400,0,{"$f":"D13*E13","v":0}]
[null,"تجهيز مواد والعدد اللازمة لقلع اللبخ القديم المتضرر للجدران الداخلية والخارجية والسقوف والاسيجة ولحد ظهور الطابوق او الكونكريت شاملا السعر استخدام كافات الالات الخاصة بقلع اللبخ مع مراعاة عدم تضرر البناء وحسب توجيهات المهندس المشرف"]
[4,"Cement Mortar plastering: - 20mm thick smooth-finished ready mixed plastering (cement -sand 1:3)  in two coats over one slurry coat, including   to POLISH cement mortar all the areas which will be painted by emulsion and liquid cement mortar all necessary angle beads and wire mesh, thickness gage. All according to Iraqi specifications ","m2",1400,0,{"$f":"D15*E15","v":0}]
[null,"اللبخ تجهيز مواد واكساء الجدران الخارجية للمدرسة وبضمنها( الكاسرات) باللبخ بمونة السمنت والرمل (3:1) بسمك 20ملم وبموجب المواصفات , ويكون اللبخ صقيل لجميع الاوجه التي يكون انهاءها بالصبغ المستحلب .شاملا السعر نثر اوجه البناء بشربت السمنت قبل عملية اللبخ"]
["C","Steel and Wooden work :                                      أعمال الخشب والشبابيك"]
[1,"Supply tools and materials and maintain wooden and metal windows and replace the damaged parts with new parts, paint 3 layers by oil paint (Type; Yaqut, Merjan or AlKanz,  or any Equivalent)  the price include  changing hinges, locks handles  with new one and all the needed works to complete the works and  as directed by supervising  engineer","m2",100,0,{"$f":"D18*E18","v":0}]
[null,"تجهيز المواد والعدد والعمل على صيانة الشبابيك الحديد والخشب وتعويض القطع الناقصة بقطع جديدة وبنفس المقطع والقياس مع الصبغ ثلاث طبقات بالاصباغ الدهنية نوع (مرجان او ياقوت او الكنز أو ما يعادلها ) وتعويض النرمادات باخرى جديدة وحسب توجيهات المهندس المشرف "]
[2,"Supply tools and materials and maintain metal doors and replace the damaged parts with new parts, paint 3 layers by oil paint (Type; Yaqut, Merjan or AlKanz,  or any Equivalent) with replacement of the hinges with new as directed by supervising engineer","m2",50,0,{"$f":"D20*E20","v":0}]
[null,"تجهيز المواد والعدد والعمل على صيانة الابواب الحديد  وتعويض القطع الناقصة بقطع جديدة وبنفس المقطع والقياس مع الصبغ ثلاث طبقات بالاصباغ الدهنية نوع (مرجان او ياقوت او الكنز أو ما يعادلها ) وتعويض النرمادات باخرى جديدة وحسب توجيهات المهندس المشرف "]
[3,"Remove the doors and gates (steel and wooden ) as specified by the supervision engineer.","m2",14,0,{"$f":"D22*E22","v":0}]
[null,"تجهيزالعدد والادوات لرفع الابواب الداخلية والخارجية واطاراتها (حديد – خشب) وبموجب المواصفات الفنية بما في ذلك رفع الانقاض ومخلفات الهدم  خارج موقع العمل للمناطق المسموح بها وحسب توجيهات المهندس المشرف"]
[4,"Supply and install hollow metal(gauge 16)  coated sliding steel door (2X3.6)m dimension  partitioning every 20cm (4cm X 4cm x 2mm) , and covered with steel plate   on both sides the frame shall be 1.5 inch and 4mm thickness. the work  including all necessary fixings,, hinges fittings, locks with  key, glazing, insulation foam, accessories, mastic, hardware and painting with anti-rust paint and 3 layers of oil paints, locks, connections accessories, , concrete columns (50X50)cm and all the required to complete the work.","m2",14,0,{"$f":"D24*E24","v":0}]
[null,"تجهيز وتثبيت ابواب حديدية كاملة كبس وجهين (كيج 16) مع اطارات مكبوسة ويشمل السعر مستلزمات التثبيت والنرمادات -على ان لا تقل عن ثلاثة لكل باب واليدات والكيلونات(نوع اصلي )  من النوعية الجيدة أومن مناشئ معروفة والزجاج الابيض الشفاف سمك (4 ملم) ومصدات الابواب والصبغ بطبقتين بمانع الصدأ ثم الانهاء بالصبغ الدهني بثلاث طبقات وطبقة من الفلين كبطانة للابواب وكل ما يتطلبه العمل وبموجب المخططات والمواصفات الفنية ذات العلاقة وبموافقة المهندس المشرف"]
["D","       Water and sanitation  Works                     أعمال الصحيات والماء   "]
[1,"Supply tools and materials to remove the old sewer pipes, toilet seats and all related accessories and any damaged or undesired old sanitary works. Price includes concrete demolition and removing trash off-side as directed by the supervising engineer.","no.",6,0,{"$f":"D27*E27","v":0}]
[null,"تجهيزالمواد والعدد اللازمة لقلع المجاري القديمة والمقاعد وملحقاتها من كليات وتقاسيم وعكوس وتوصيلات للمرافق الصحية واي تاسيسات صحية غير مرغوب فيها او متضررة  شاملا السعر تكسير الصب ورفع المخلفات خارج موقع العمل وحسب توجيهات المهندس المشرف"]
[2,"Supply and Install eastern type Toilet (52 * 60) cm, White,  complete with galvanized flush tank  with 32mm galvanized water pipes, chrome tap 15mm for each toilet, fitting, chrome plated 13mm stop and valve . Price to include waste pipes to nearest manhole, water pipe from the system, the price include painting the water tank and water pipes by oil paint and thermal white color","no.",6,0,{"$f":"D29*E29","v":0}]
[null,"تجهيز وتركيب وفحص مراحيض شرقية فرفورية من النوع العميق  بيضاء او ملونة طول(52) سم على الاقل مع الكلي خزان الماء العالي من الحديد المغلون النازل من الخزان قطر (32) ملم وحنفية كروم قطر (15) ملم لكل مرحاض يطلي خزان الماء والانبوب النازل بالصبغ الدهني وباللون الابيض الحراري  وتكون المراحيض من مصنوعات جيدة وبموافقة المهندس."]
[3,"Supply materials to pour concrete manholes as the dimensions below by using SRC and mix ratio (1:1.5:3), Poly-Ethylene covers. Price includes sulphate resistance cement plastering for the exterior side before painting with asphalt 20/30 Grade, slope works in the manhole base per the required specifications"]
[null,"تجهيز المواد وصب احواض تفتيش بابعاد المبينة ادناه  ذات قاعدة وجدران كونكريتية مسلحة وباستعمال السمنت المقاوم وبنسبة خلط 3:1.5:1 مع اغطية محكمة من الاهين او البلاستك المضغوط , شاملا السعر انهاء الاسطح الخارجية باللبخ بمونة السمنت المقاوم للاملاح والرمل ثم الطلاء بمادة القير السيالي درجة 20/30  وعمل الانحدارات اللازمة في قاعدة المنهول وكما مبين في المواصفات"]
["A","40x40 cm","no.",5,0,{"$f":"D33*E33","v":0}]
[null,"40*40 سم "]
["B","60x60 cm","no.",1,0,{"$f":"D35*E35","v":0}]
[null,"60*60 سم"]
[4,"Supply, installation, testing and commissioning of UPVC of SN8 drainage 6 bar and ventilation pipes down to manholes with all required fittings including excavation, back filling, incasing with sulphate resistant cement concrete and roof vent caps, including connections as follow"]
[null,"تجهيز وتركيب وفحص انابيب مجاري بلاستيكيةUPVC تتحمل ضغط 10 جو على الأقل من نوعية جيدة, مع كافة الملحقات والتقاسيم والعكوس.(سعودي او مصري الامل شريف الاصلي او ما يعادلها ) يتضمن العمل الحفريات والتغليف بالرمل النظيف من كافة الجوانب.والصب بالكونكريت :ـ"]
["A","Plastic pipes, UPVC,  Dia 100ml (4 inches) ","l.m.",12,0,{"$f":"D39*E39","v":0}]
[null,"انابيب بلاستكUPVC  قطر 110 ملم (4 انج)"]
["B","Plastic pipes, UPVC, Dia 160 ml ( 6 inches)","l.m.",6,0,{"$f":"D41*E41","v":0}]
[null,"انابيب بلاستكUPVC  قطر 160 ملم(6 انج)"]
[5,"Supply and install hot and cold galvanized steel pipes sch40 first class for the (hot & cold) water supplied for Washbasins and bathrooms. Pipes installed inside walls after painting covering by glass fiber and painting with anti-corrosion with all work requirements and accessories. Samples to be submitted prior to work . Work includes walls/concrete digging  if required"]
[null,"اولا. تاسيس ماء حار وبارد للمغاسل والحمامات  باستعمال انابيب مغلونة درجة اولى مدفونة ضمن الجدران والارضيات ومغلفة بالصوف الزجاجي مع صبغها قبل التغليف بصبغ مانع للصدأ مع استخدام  كافة المتطلبات من عكوس وتقاسيم واقفال. \nثانيا. تقدم نماذج من المواد المستعملة للموافقة المسبقة عليها. \nثالثا. يشمل السعر الحفريات مع تكسير الجدران والكونكريت اذا تطلب الامر."]
["A","Galvanized pipes, Dia 1/2 inches","l.m.",45,0,{"$f":"D45*E45","v":0}]
[null,"انابيب مغلونة قطر 1/2 انج "]
["B","Galvanized pipes, Dia 3/4 inches","l.m.",40,0,{"$f":"D47*E47","v":0}]
[null,"انابيب مغلونة قطر 3/4 انج "]
[6,"Supply and install White Vitreous  with  semi pedestal/ with stand   Wash Basin, size (40 *56) cm complete   with all fittings, valves, waste pipes to nearest floor   traps  , connection to water system, the price also includes the chrome mixer ,mirror,  and soap holder or any other necessary parts. ","no.",2,0,{"$f":"D49*E49","v":0}]
[null,"تجهيز وتركيب مغاسل فرفورية بيضاء مع السداد والسلسلة والتثبيت والتوصيلات مع وضع قفلين براص/ مطلي بالكروم والخلاط منشأ تركي اصلي ثقيل والصوندة والبالوعة وتكون المغاسل من مصنوعات جيدة توافق عليها لجنة الاشراف وتكون المغاسل بالقياسات والملحقات المبينة ادناه :-مغسلة(56x40)سم مع خلاط وبراكيتات مع المرايا وحمالة الصابون"]
[7,"Supply and install 4” PVC Floor Trap. Price to include siphon to be fixed in reinforced concrete, (15*15 ) double chrome plated cover one grated and one-closed.  and all other fittings needed to comply.","no.",3,0,{"$f":"D51*E51","v":0}]
[null,"سيفون ارضي للمغاسل تجهيز ونصب سيفون تصريف ارضي (كلي) من البلاستك UPVC قطر100ملم مع مشبك بلاستك مضغوط  ويثبت في الارضية بمستوى الكاشي  مع الربط مع الانابيب والعزل الجيد بالخرسانة ذات سمك 15سم من جميع الجهات"]
[8,"Supply and install steel tower for the water toilets tanks by using 5 inches I section as columns and 3 inches angle shape as horizontal beams steel sections, 50 cm cantilevers from sides with guard rail at 70 cm height for the tanks maintenance, paint by anti rust and 3 layers of oil paint. Base fixed to the ground by concrete base (1.5x3x0.15) m, mix ratio (1:2:3) with wire mesh Tower dimensions from bottom (2.5x1.2) with service ladder. service area will be concerned by Jagger plate.as instructed and approved by the Supervising Engineer.","l.s.",1,0,{"$f":"D53*E53","v":0}]
[null,"عمل برج من الحديد لخزانات مياه المرافق الصحية للطلاب باستخدام حديد الشيلمان (5) انج ثقيل كاعمدة وحديد الزاوية (3) انج ثقيل كمفاصل رابطة وجسور عرضية مع عمل حافات بعرض ( 50) سم لجوانب البرج مع عمل محجر بارتفاع (70) سم لغرض صيانة الخزانات شاملا السعر الصبغ بمانع الصدأ والبوية والتثبيت بالارض بواسطة حفر اساس بعمق (60 سم ) وبابعاد (1.5*3)  والتربيع بالجلمود بسمك (10)سم ووضع طبقة تسويه بنسبة خلط (3:1) سمك (5سم) وعمل  صبة كونكريتية بنسبة خلط (3:2:1) سمك (15 سم) مع وضع طبفة من ال(بي ار سي ) سمك (6ملم) محزز ويكون البرج من الاسفل بابعاد ( 2.5 *1.2 ) م مع وجود سلم خدمي (cat leader) مع تغليف المنطقة الخدميه باستخدام حديد الجكر بليت وحسب توجيه وموافقة المهندس المشرف "]
[9,"Supply and Install Water tap - regular type- as approved by the Supervisor Engineer.","no.",12,0,{"$f":"D55*E55","v":0}]
[null,"حنفيات ماء اعتيادية(Water tap) نوع  تركي براص وبموافقة المهندس المشرف"]
[10,"Supply and install galvanized water tank of 1000-liter capacity and gauge 16 plate, at the height 50 cm from the ground floor. Work includes all installation and connections with sanitary unit, cover diameter 50 cm, replacing the damaged tap, pipes, with all the required works to complete the Job. Tank dimensions (1x1x1)m","no.",4,0,{"$f":"D57*E57","v":0}]
[null,"تجهيز ونصب وفحص خزان ماء من صفائح الحديد المغلون كيج(16) على الاقل مع قواعد خرسانية مع الشيلمان بارتفاع  50 سم عن سطح الارض او توضع على الابراج مع انبوب تفريغ وانبوب الماء الفائض مع غطاء بابعاد (قطر 50 ) سم مع طوافة اعتيادية مع عمل قفل خروج وقفل دخول لكل خزان علما ان ابعاد الخزان (1*1*1) م"]
["E","                                                Tiling  Works                       أعمال الكاشي  "]
[1,"Supply  and install porcelain tiles anti slip for the sanitation unit floors  size (20X20X0.8 cm) , the water absorption shall be 0.5 to 0.9% , the price include the all the material needed to install , filling with white cement and  polishing the porcelain tiles and installation of 10 cm ceramic skirting, with all the required works complete the Job.","l.m.",80,0,{"$f":"E60*D60","v":0}]
[null,"تجهيز مواد وعدد وتثبيت ارضية للحمامات  من  السيراميك الذي يمنع الانزلاق بابعاد (20*20) سم باستعمال مونة السمنت والرمل (3:1) مع الشربتة بمونة السمنت الابيض.  ويراعى قـــص السيراميك  بــدقه وبصوره مستقيمه وفي حالة عدم توفر الابعاد المثبتة في الكشف والمخططات  على المهندس المشرف تحديد الابعاد والالوان"]
[2,"Supply and install ceramic tiles (25X40X1cm) for the sanitary, kitchen and cafeteria walls.  The water absorption shall be 10 to 15 % the price include  all the material needed to install , filling with white cement and  polishing ","m2",170,0,{"$f":"D62*E62","v":0}]
[null,"تجهيز مواد واكساء جدران وقواطع المرافق الصحية الداخلية والمطبخ والحانوت  بالكاشي السيراميك باستعمال مونة السمنت والرمل (3:1) مع الشربتة بمونة السمنت الابيض. شاملا السعر تجهيز وتثبيت شرائط اركان من الالمنيوم الخاص باركان جدران السيراميك .ويراعى قـــص الكاشي بــدقه وبصوره مستقيمة . وفي حالة عدم توفر الابعاد المثبتة في الكشف والمخططات  على المهندس المشرف تحديد الابعاد والالوان"]
["F","          أعمال السياج والأعمال الخارجية               Externa and external  Fence Works "]
[1,"Supply materials and tools required for complete removal of the old damaged cement mortar for the interior and exterior walls and ceilings. Cement mortar removal must not affect walls and ceilings, and according to the directions of the Supervising Engineer","m2",1730,0,{"$f":"D65*E65","v":0}]
[null,"تجهيز مواد والعدد اللازمة لقلع اللبخ القديم المتضرر للجدران الداخلية والخارجية والسقوف والاسيجة ولحد ظهور الطابوق او الكونكريت شاملا السعر استخدام كافات الالات الخاصة بقلع اللبخ مع مراعاة عدم تضرر البناء وحسب توجيهات المهندس المشرف"]
[2,"Cement Mortar plastering: - 20mm thick smooth-finished ready mixed plastering (cement -sand 1:3)  in two coats over one slurry coat, including   to POLISH cement mortar all the areas which will be painted by emulsion and liquid cement mortar all necessary angle beads and wire mesh, thickness gage. All according to Iraqi specifications ","m2",1800,0,{"$f":"D67*E67","v":0}]
[null,"اللبخ تجهيز مواد واكساء الجدران الخارجية للمدرسة وبضمنها( الكاسرات) باللبخ بمونة السمنت والرمل (3:1) بسمك 20ملم وبموجب المواصفات , ويكون اللبخ صقيل لجميع الاوجه التي يكون انهاءها بالصبغ المستحلب .شاملا السعر نثر اوجه البناء بشربت السمنت قبل عملية اللبخ"]
[3,"Supply tools and materials necessary to paint the exterior walls, columns and walk ways by plastic paint; type Spies, BTEC or any equivalent. price includes paint with prime layer basis of the same type, appropriate color. Price must include all work requirements of refining surfaces and as directed by the Supervising Engineer.","m2",1800,0,{"$f":"D69*E69","v":0}]
[null,"تجهيز المواد والعدد اللازمة والقيام بصبغ الجدران والاعمدة والممرات الخارجية بالاصباغ البلاستيكية (خارجي)  نوع سايبس او بيتيك او ما يعادلها ويشمل السعر الطلاء بطبقه اساس اولية من نفس منشاء الصبغ وبلون مناسب وكل ما يتطلبة العمل من تصفيه وصقل السطوح وحسب توجيهات المهندس المشرف"]
[4,"Supply and install hollow metal  coated sliding steel door (2X3.6)m dimension  partitioning every 20cm (4cm X 4cm x 2mm) , and covered with steel plate 1.5mm thickness on both sides the frame shall be 1.5 inch and 2mm thickness. the work  including all necessary fixings,, hinges fittings, locks with  key, glazing, insulation foam, accessories, mastic, hardware and painting with anti-rust paint and 3 layers of oil paints, locks, connections accessories, , concrete columns (50X50)cm and all the required to complete the work.","no.",1,0,{"$f":"D71*E71","v":0}]
[null,"ابواب من الحديد مع الاطار يشمل العمل كلفة ملحقات التثبيت والنرمادات والكيلون مع الطلاء وطبقة واحدة بمانع الصدا وثلاث طبقات من الاصباغ الدهنية وبموجب المخططات والمواصفات الفنية بابعاد (3.6*2) م  للباب (فردة والاخرى سلايد ) مع نقشة من الحديد تحدد بموجب مرتسم يقدم من المهندس المشرف مع السكة والبولبرنات مع صب اعمدة كونكريتية مسلحة (50 * 50  ) سم للتثبيت مع انهاءاتها وكل ما يتطلبه العمل الجيد وحسب توجيهات المهندس المشرف "]
[5,"Supply and install side walk interlock tiles at the school entrance with different shapes and colors 6 cm thick , the price include spreading sand and cement underneath the tiles with compaction , filling joints with dry sand -cement mixed with watering , according to the supervising engineer instruction","m2",70,0,{"$f":"D73*E73","v":0}]
[null,"تجهيز المواد والعدد والعمل على تطبيق (بيهارتون ) مقرنص خاص بالارصفة عند مدخل المدرسة وباشكال هندسية مختلفة والوان يحددها المهندس المشرف ولايقل سمكها عن 6 سم شاملا السعر فرش الرمل والاسمنت تحت المقرنص مع الحدل الجيد ومليء المفاصل بخليط الرمل والاسمنت الجاف والرش بالماء وحسب توجيهات المهندس المشرف ."]
[6,"Supply materials, tools and manpower to remove ground and yards concrete per the specifications including removing debris and all obstacle materials with all work requirements to complete the Job.","m2",80,0,{"$f":"D75*E75","v":0}]
[null,"تجهيزالعدد والادوات لرفع صبات الساحات والارضيات وبموجب المواصفات الفنية بما في ذلك رفع الانقاض ورفع والمواد التي تعترض الهدم  ثم التعديل والتسوية ورفع الانقاض خارج موقع العمل للمناطق المسموح بها وحسب توجيهات المهندس المشرف"]
["G","Electrical  works                                                                   الأعمال الكهربائية                                          "]
[1,"L.T Cables :                                                                                                   Feeding cables copper unarmored (PVC) isolated with grounding  suspended on the wall using cable clamps , the price including , installation of cables with all accessories ,clamps , terminal , installation according to pithing area, according to technical specification and attaching drawings. "]
[null,"كابلات الضغط الواطئ:                                                                                                                         كابل مغذي نحاسي غير مسلح  معزول ومغلف بـ (PVC) مع سلك ارضي يعلق على الجدار بواسطة قفائص ومد الكابل شاملا القفائص وترامل الربط  والانهاء حسب تفاصيل المنطقة التي يمر بها والمواصفات الهندسية والمخططات المرفقة.                                                                                                                    "]
[null,"cable 2X10mm2 ","m.l ",100,0,{"$f":"E80*D80","v":0}]
[null,"كيبل 2×10 ملم2"]
[null,"cable 4X16mm2 +cable 1*16mm2","m.l ",50,0,{"$f":"E82*D82","v":0}]
[null,"كيبل 4×16 ملم2+كيبل 1*16ملم2 "]
[2,"Main Distribution Board MDB:\nSupply, test, and operate main distribution board metal enclosure, anti-corrosion  paint water proof IP 55 dimensions (120cm *80cm 40cm) with bottom bass not less than 30cm, with internal protection glass door easy to open, including metering gauges ( volt, Ampere, frequency) meters using buss bar size (40*5mm) 3ph including phase indicated lamps and selector switches according to technical specification and Supervisor engineers instructions , the MDB will include the following            3 phase breakers:  \nMCCB 250Amps /No 1 \n MCCB 150Amps /No 2 \n MCCB 100Amps /No3          ","no.",1,0,{"$f":"E84*D84","v":0}]
[null,"لوحة التوزيع الرئيسية MDB :                                                                                             تجهيز وفحص وربط وتشغيل لوحة توزيع رئيسية ذات هيكل معدني مقاوم للصدأ مع باب محكم الغلق يمنع تسرب الغبار والحشرات بابعاد لاتقل عن (120 سم ×80 سم ×40 سم ) مع قاعدة بارتفاع 30 سم وباب زجاجي داخلي سهل الفتح مع مقاييس التيار والفولتية ومفتاح اختيار الفولتية ذو بازبار بأبعاد لا تقل عن( 40×5) ملم 2ثلاثة اطوار مع مقاييس التيار والفولتية ومفتاح التحويل وكافة المتطلبات لأكمال العمل حسب موافقة المهندس المشرف .\nوتشتمل اللوحة على القواطع التالية:\nقاطع سعة ( 250 )  امبير عدد / 1\nقاطع سعة ( 150  )   امبير عدد / 2\n قاطع سعة ( 100  )   امبير عدد / 3                                                                       "]
[3,"Lighting fixture :\n Supply, install, test and operation lighting fixture with all accessories holder, Trans, starter, lamps and a capacitors for power factor correction, boxes, switches, wiring using copper wires superficial or Siemens type the price includes installation boxes switches wiring, and earthling according to specification "]
[null,"تجهيز وفحص وتشغيل تراكيب انارة مع جميع ملحقاتها مثل الهولدر والجوك والستارتر والمصابيح ومكثفات تحسين معامل القدرة والصناديق والمآخذ والمفاتيح مع التسليك باستخدام اسلاك نحاسية مفردة اردني الصنع  قياس 3×2.5 ملم2 مغلفة بمادة البلاستك من النوع الجيد داخل انابيب من البلاستك و قابلوات حسب المخططات شاملة المفاتيح واسلاك التوصيل والانابيب البلاستيكية والتثبيت والتأريض ...الخ حسب المواصفات الفنية المعتمدة وكما يلي : "]
["A","Waterproof wall mounted electrical fitting with glass cover with economic  lamp not less than 28watt with all accessories. ","no.",12,0,{"$f":"E88*D88","v":0}]
[null,"مصباح مطري مع القاعدة والغطاء زجاجي لايتاثر بالحرارة مع مصباح اقتصادي لايقل عن 28 واط وجميع ملحقاته يثبت على الجدران الخارجية سعودي "]
["B","Supply Metal box dimension 40cm *30cm including a photo cell ,contactor and selector switch to operate external lighting manually and automatic , wiring and other installation accessories .under supervise engineers instructions control,\n  ,","no.",1,0,{"$f":"E90*D90","v":0}]
[null,"تجهيز ونصب صندوق حديد بابعاد 40سم ×30 سم  يحتوي على خلية ضوئية من منشاء جيد وكوندكترات وجوزات مع سيلكتر خاصة بتشغيل الاضائة الخارجية اوتوماتيك ويدوي واطفاء مع اسلاك الربط والتسليم كاملا وحسب توجيهات المهندس المشرف ."]
[4,"Sub - Distribution Board SDB:18 circuits \nSupply, test, and operate Sub distribution board metal enclosure, anti-rust paint with good locking door waterproof IP 55 according to technical specification and supervise engineers instructions, Main  Circuit Breaker: \n MCCB 3*150Amps\nCB 16 Amps /No 2 \nCB 20 Amps /No 6 \nCB 25 Amps /No 3                                                                                       CB 32 Amps /No7","no.",1,0,{"$f":"E92*D92","v":0}]
[null,"لوحة التوزيع الفرعية ٍSDB : جوزة تاسيس ظاهري او دفن 18 جوزة                       تجهيز وفحص وربط وتشغيل لوحة توزيع الفرعية مع وكافة المتطلبات لأكمال العمل وحسب موافقة المهندس المشرف .\nوتشتمل اللوحة على القواطع التالية:                                                              قاطع رئيسي 3*150امبير وقواطع الفرعية \nقاطع سعة ( 16 )  امبير عدد / 2\nقاطع سعة ( 20  ) امبير عدد / 6\nقاطع سعة ( 25  ) امبير عدد / 3                                                                 قاطع سعة ( 32  ) امبير عدد /7"]
[5,"Sub  Distribution Board SDB: 6 circuits \nSupply, test, and operate Sub distribution board metal enclosure, anti-rust paint with good locking door waterproof IP 55 according to technical specification and supervisor engineers instruction. The SDB will include the following breakers:                    Main  Circuit Breaker MCCB  3*100Amps\n CB 10 Amps /No 3          \nCB 16 Amps /No 2 \nCB 32 Amps /No1","No.",1,0,{"$f":"E94*D94","v":0}]
[null,"لوحة التوزيع الفرعية ٍSDB : جوزة تاسيس ظاهري او دفن 6 جوزة                        تجهيز وفحص وربط وتشغيل لوحة توزيع الفرعية  ذات هيكل معدني مقاوم للصدأ  وكافة المتطلبات لأكمال العمل حسب موافقة المهندس المشرف .\nوتشتمل اللوحة على القواطع التالية:                                                              قاطع رئيسي 3*100امبير وقواطع الفرعية \nقاطع سعة (  10  ) امبير عدد /3\nقاطع سعة ( 16 )  امبير عدد / 2\nقاطع سعة ( 32  )   امبير عدد / 1"]
[6,"Socket switches :\nSupply materials, install, test and operation switch black using best quality wires superficial or Siemens type the price includes installation boxes switches wiring, and earthling according to specification and drawings"]
[null,"نقاط مآخذ القوى بلك سويج                                                                                             تجهيز مواد وتاسيس وفحص وتشغيل نقطة مأخذ القوى باستخدام اسلاك اردني اصليه ظاهري او وسيمنز شاملة الصناديق والمآخذ والمفاتيح واسلاك التوصيل والتثبيت والتأريض ...الخ حسب المواصفات وكما مبين في المخططات "]
["A","13Amps socket using 3*2.5mm2 wires ","no.",36,0,{"$f":"E98*D98","v":0}]
[null,"سعة 13 امبير باستخدام اسلاك نحاسية اردني قياس 3×2.5 ملم2     "]
["B","15Amps socket using 3*2.5mm2 wires ","no.",10,0,{"$f":"E100*D100","v":0}]
[null,"سعة 15 امبير باستخدام اسلاك نحاسية اردني قياس 3×2.5 ملم2  "]
[7,"Lighting  fixture :Supply, install, test and operation Economic spider lamp 105watt with big holder, wall an ceiling mounted type   all accessories , boxes, switches, wiring using copper wires superficial or Siemens type the price includes installation boxes switches wiring, and earthling according to specification and drawings","No",61,0,{"$f":"E102*D102","v":0}]
[null,"تراكيب الانارة :                                                                                                      تجهيز وفحص وتشغيل مصباح اقتصادي 105 واط عنكبوتي مع قاعدة هولدر كبيرة صالح للتثبيت على الجدار والسقف مع جميع ملحقاتها الصناديق والمآخذ والمفاتيح مع التسليك باستخدام اسلاك نحاسية ظاهرية اردنية او سيمنز دفن  قياس 3×1.5 ملم2  مغلفة بمادة البلاستك من النوع الجيد شاملة المفاتيح واسلاك التوصيل والتثبيت والتأريض ...الخ حسب المواصفات الفنية المعتمدة وكما يلي "]
[8,"Ceiling , vertical, wall types  fans   \nSupply, install, test and operation ceiling fans type Panasonic or equivalent with all accessories demission 140cm (56inch) with installing  boxes, switches, wiring using copper wires(3*1.5mm2) superficial or Siemens type the price includes installation boxes Regulator  wiring, and earthling according to specifications","no.",10,0,{"$f":"E104*D104","v":0}]
[null,"المراوح السقفية والعمودية والجدارية:\nتجهيز وفحص وتشغيل مروحة سقفية نوع باناسونيك أو ما يعادلها مع جميع ملحقاتها وحسب المواصفات الفنية المعتمدة بقطر 140 سم (56انج) مع التسليك باستخدام اسلاك نحاسية ظاهري او سيمنس دفن  المنشا اردني قياس 3×1.5 ملم2 اردني  مغلفة بمادة البلاستك من النوع الجيد شاملة المنظم و الصناديق والمآخذ والمفاتيح واسلاك التوصيل والتثبيت والتأريض وحسب المواصفات الكهربائية والميكانيكية"]
[9,"Wall mounted Exhaust fans:   Supply, install, test and operation wall mounted fans size 6 inches exhaust fan with all accessories demission with  boxes, switches, wiring using copper wires(3*1.5mm2) exposed Siemens type the price includes operation switches , earthling and Shutter dampers according to Electrical and mechanical specifications","no. ",8,0,{"$f":"E106*D106","v":0}]
[null,"مفرغات الهواء الجدارية :\nمفرغات الهواء الجدارية :\nتجهيز وتثبيت مفرغات هواء جدارية للقاعة والمطبخ حجم 6 انج مع التسليك باستخدام اسلاك نحاسية ظاهرية سيمنس دفن  ىقياس 3×1.5 ملم2  مغلفة بمادة البلاستك من النوع الجيد داخل انابيب من البلاستك مع مفتاح التشغيل والمزودة بسداد الغلق (Shutter Damper) وحسب ما مثبت في المواصفات الميكانيكية والكهربائية المعتمدة \n"]
[10,"Supply, install, test and operation water heater isolated type cover with painted enclosure, with heater element and heat regulator ,safety valve installing  all required pipe line with Crum locks valve to be ready to connect to electrical source through electrical cable 3*4mm2 with earthling line and 32 amps operation switch  with power indications  lamp capacity 120 Liters","no.",2,0,{"$f":"E108*D108","v":0}]
[null,"تجهيز ونصب وتشغيل سخانات ماء كهربائية من النوع المعزول المغلف بغلاف مطلي بالمينا مع عنصر التسخين ومنظم الحرارة وصمام الامان وتوصيلات الماء المرنة واقفال كروم زاوية ,بحيث تكون جاهزة للربط بالمصدر الكهربائي القريب منها باستخدام كيبل 3×4 ملم2 مع التأريض مع مفتاح التشغيل 32 امب يحتوي على مصباح اشارة سعة 120 لتر"]
[12,"Supply, install, test and operation water cooler with 2 tab  manufactured from stainless steel sheet  plats heavy duty type capacity 75liters/hour with cooling fan (220V 50Hz) pressing type taps with all pipe line connection according to technical specifications .","no.",3,0,{"$f":"E110*D110","v":0}]
[null,"براد ماء مصنوع من صفائح الحديد الغير قابل للصدا (Stainless steel) نوعية 2 حنفية  ذو خزان بسعة لاتقل عن 75 لتر بالساعة ويجب ان تتضمن برادات الماء مضخة تبريد ذات مواصفات ( 220فولت /50هرتز )( وحنفية (تفتح بالضغط) شامل السعر جميع التوصيلات المائية والكهربائية  وحسب المواصفات"]
[13,"supply, install, test and operation water Pump 1Hp and  1inch size Q=0.75m3/h and H =15m with fluting mechanical switch but on high level of water tank , on the roof , electrical connecting level switch the price including  make concert foundation 40cm  to water pam and Aluminum closing enclosure removable  75liters/hour with cooling fan (220V 50Hz) pressing type taps with all during pump maintenance.","no.",3,0,{"$f":"E112*D112","v":0}]
[null,"تجهيز ونصب وفحص مضخة الماء واحد حصان واحد انج   وطوافة ميكانيكية  توضع  للمستوى العالي توضع على خزان السطح مع الربط  الكهربائي وكافة الاسلاك ويشمل العمل ايضا قواعد المضبخات من الكونكريت بسمك لايقل عن 40 سم مع قفص من الالمنيوم  يثبت بالبراغي ويمكن رفعه عند الصيانة مع بوابة  .((يتحمل المقاول اجور الربط  المضخة مع المصدر الخارجي))"]
[14,"  Supply, install, test and operation 3KVA Electrical Gasoline Generator single phase type Tiger or Equivalent, gasoline operation, electrical starter , and manual with all required accessories, price includes connection to MDB using cable  2*6 mm2 according to instructions of the supervising Engineers ","no.",1,0,{"$f":"E114*D114","v":0}]
[null,"تجهيز ونصب وتشغيل مولدة كهربائية قدرة 12  امبير (نوع تايكر أو مايعادلها)  تعمل بالبنزين وتششغيل بالسلف معا والسحب  مع كل متطلبات العمل. يكون السعر شاملا كافة أعمال الربط الكهربائي وإيصال القدرة إلى لوحة التوزيع الرئيسية MDB باستخدام كيبل 2×6 ملم2  وحسب توجيه المهندس المشرف. "]
[15,"Supply and install water filter (water cleaning device RO 50GTDS) a fifth stage of cleaning with water storage , connection and installation pipes to water coolant and outlet , supply 10 spear filter for each .stage of filtration alterable delivers to school administration.","no.",1,0,{"$f":"E116*D116","v":0}]
[null,"First stage: sediment filter\nSecond Stage: granular activated carbon sediment filters C85.\nThird stage: color correction filter CTO.\nFourth stage: membrane filter 50G RO \nFifth stage: last activated carbon filter \nStorage: 3.2G "]
[null,"                                                    Tabs :stain less steel reversed tab\n\n"]
[null,"Pump: SML -880680PSI 12 GPM"]
[null,"Electrical transformer: 24V /1.2Amp  "]
[null,"تجهيز ونصب مرشح ماء  (جهاز تنقية الماء RO بدرجة 50  G TDS)  ذو خمس مراحل  مع الخزان والربط والتثبيت وايصال انبوب الصرف اقرب كلي والخروج الى البراد شاملا السعر  تجهيز فلاتر عدد 10 من كل نوع فلتر قابل للتبديل تسلم الى ادارة المدرسة.            لمرحلة الاولى: مرشح الرواسب5µm PP بدقة 5 ميكرون \nالمرحلة الثانية: مرشح الكربون المنشط الحبيبي C85\nالمرحلة الثالثة: مرشح تصحيح الألوان CTO\nالمرحلة الرابعة: الغشاء الترشيحي  50G RO                                                   المرحلة الخامسة: مرشح الكربون المنشط الأخير \nالخزان: 3.2G\nالحنفية: حنفية الفولاذ المقاوم للصدأ (ستانلس ستيل) المعقوفة\nالمضخة: SML-8806 80 PSI/0.12 GPM\nالمحول الكهربائي: 24V/1.2 A"]
["H","Air-Condition system"]
[1,"Supply, install, test and operation A. C units free stand floor type  Wall mounted 2400BTU , 2 Tons,  cooling and heating type  with all connection accessories, pipes are cover and isolated ,connecting outdoor unit with indoor unit, and other required tools and works ,as electrical protection , wiring, west water pipes  drain. 32 amps C.B price includes man power and material using cable 3*4mm2 inside 25mm2 PVC pipe and ,   ,the stand floor shall be from the galvanized steel for the outer door  with T shape 50mmX50mmX5mm, painted with prime paint and   white  finishing paint , make a cage for outdoor units    \n","no.",5,0,{"$f":"E123*D123","v":0}]
[null,"تجهيز,نصب,تشغيل و فحص وحدة تكييفAir Conditioner Split Unit - Free Stand  Wall Mounted  -Cooling/Heating  جداري)2 طن تدفئة وتبريد(2400BTU) نوع بلازمه كاملة غير منقوصة مع أنابيبها المغلفة والمعزولة الواصلة بين الوحدة الخارجية والداخلية ,كما تحتوي على تدفئة مع كافة الأعمال الضرورية مثل الحماية الكهربائية ,أسلاك السيطرة ,التوصيلات الكهربائية ,الربط بمصدر القدرة وأنابيب تصريف الماء المتكثف Drain وكما ورد في المخططات وحسب المواصفات مع أجهزة الحماية الكهربائية \nوتجهيز قاطع دورة سعة 32امبير ويشمل السعر اجور التاسيس [باستعمال اسلاك قياس (3*4) ملم2 تمرر داخل انابيب بلاستيكيةوجهاز الحماية نوع منوار مع القفص للوحدة الخارجية والتثبيت او التعليق بالجدار ."]
["          Total Cost estimation for Al-Aqtedar:",{"$nulls":4},{"$f":"SUM(F6:F123)","v":0}]

{"sheet":"Al-Bahja ","index":2,"n_rows":225,"n_cols":8,"rows_kept":225,"cut":false,"hidden":false,"merged":[[224,0,224,4],[1,0,1,5],[147,0,148,0],[147,2,148,2],[147,3,148,3],[147,4,148,4],[147,5,148,5],[149,0,150,0],[149,2,150,2],[149,3,150,3],[149,4,150,4],[149,5,150,5],[101,0,102,0],[101,2,102,2],[101,3,102,3],[101,4,102,4],[101,5,102,5],[103,0,104,0],[103,2,104,2],[103,3,104,3],[103,4,104,4],[103,5,104,5],[143,0,144,0],[143,2,144,2],[143,3,144,3],[143,4,144,4],[143,5,144,5],[145,0,146,0],[145,2,146,2],[145,3,146,3],[145,4,146,4],[145,5,146,5],[139,0,140,0],[139,2,140,2],[139,3,140,3],[139,4,140,4],[139,5,140,5],[141,0,142,0],[141,2,142,2],[141,3,142,3],[141,4,142,4],[141,5,142,5],[135,0,136,0],[135,2,136,2],[135,3,136,3],[135,4,136,4],[135,5,136,5],[137,0,138,0],[137,2,138,2],[137,3,138,3],[137,4,138,4],[137,5,138,5],[131,0,132,0],[131,2,132,2],[131,3,132,3],[131,4,132,4],[131,5,132,5],[133,0,134,0],[133,2,134,2],[133,3,134,3],[133,4,134,4],[133,5,134,5],[126,0,128,0],[126,2,128,2],[126,3,128,3],[126,4,128,4],[126,5,128,5],[129,0,130,0],[129,2,130,2],[129,3,130,3],[129,4,130,4],[129,5,130,5],[122,0,123,0],[122,2,123,2],[122,3,123,3],[122,4,123,4],[122,5,123,5],[124,0,125,0],[124,2,125,2],[124,3,125,3],[124,4,125,4],[124,5,125,5],[118,0,119,0],[118,2,119,2],[118,3,119,3],[118,4,119,4],[118,5,119,5],[120,0,121,0],[120,2,121,2],[120,3,121,3],[120,4,121,4],[120,5,121,5],[114,4,115,4],[114,5,115,5],[116,0,117,0],[116,2,117,2],[116,3,117,3],[108,5,109,5],[116,4,117,4],[116,5,117,5],[110,0,113,0],[110,2,111,2],[110,3,111,3],[110,4,111,4],[110,5,111,5],[112,2,113,2],[112,3,113,3],[112,4,113,4],[170,0,171,0],[170,2,171,2],[170,3,171,3],[170,4,171,4],[170,5,171,5],[211,0,212,0],[211,2,212,2],[211,3,212,3],[211,4,212,4],[211,5,212,5],[179,0,180,0],[179,2,180,2],[179,3,180,3],[179,4,180,4],[179,5,180,5],[183,0,184,0],[183,2,184,2],[183,3,184,3],[183,4,184,4],[183,5,184,5],[185,0,186,0],[185,2,186,2],[185,3,186,3],[185,4,186,4],[166,0,167,0],[166,2,167,2],[166,3,167,3],[166,4,167,4],[166,5,167,5],[168,0,169,0],[168,2,169,2],[168,3,169,3],[168,4,169,4],[168,5,169,5],[162,0,163,0],[162,2,163,2],[162,3,163,3],[162,4,163,4],[162,5,163,5],[164,0,165,0],[164,2,165,2],[164,3,165,3],[164,4,165,4],[164,5,165,5],[158,0,159,0],[158,2,159,2],[158,3,159,3],[158,4,159,4],[158,5,159,5],[160,0,161,0],[160,2,161,2],[160,3,161,3],[160,4,161,4],[160,5,161,5],[154,0,155,0],[154,2,155,2],[154,3,155,3],[154,4,155,4],[154,5,155,5],[156,0,157,0],[156,2,157,2],[156,3,157,3],[156,4,157,4],[156,5,157,5],[75,4,76,4],[75,5,76,5],[152,0,153,0],[152,2,153,2],[152,3,153,3],[152,4,153,4],[152,5,153,5],[99,0,100,0],[99,2,100,2],[99,3,100,3],[99,4,100,4],[99,5,100,5],[112,5,113,5],[106,0,107,0],[106,2,107,2],[106,3,107,3],[106,4,107,4],[106,5,107,5],[108,2,109,2],[108,3,109,3],[108,4,109,4],[114,0,115,0],[114,2,115,2],[114,3,115,3],[50,0,51,0],[50,2,51,2],[50,3,51,3],[50,4,51,4],[50,5,51,5],[53,2,68,2],[53,3,68,3],[53,4,68,4],[53,5,68,5],[54,0,68,0],[40,0,41,0],[40,2,41,2],[40,3,41,3],[40,4,41,4],[40,5,41,5],[42,0,43,0],[44,0,45,0],[46,0,47,0],[48,0,49,0],[33,0,34,0],[35,0,36,0],[35,2,36,2],[35,3,36,3],[35,4,36,4],[35,5,36,5],[37,0,38,0],[37,2,38,2],[37,3,38,3],[37,4,38,4],[37,5,38,5],[95,0,96,0],[95,2,96,2],[95,3,96,3],[95,4,96,4],[95,5,96,5],[97,0,98,0],[97,2,98,2],[97,3,98,3],[97,4,98,4],[97,5,98,5],[91,0,92,0],[91,2,92,2],[91,3,92,3],[91,4,92,4],[91,5,92,5],[93,0,94,0],[93,2,94,2],[93,3,94,3],[93,4,94,4],[93,5,94,5],[80,2,81,2],[80,3,81,3],[80,4,81,4],[80,5,81,5],[86,0,87,0],[84,0,85,0],[69,0,70,0],[69,2,70,2],[69,3,70,3],[69,4,70,4],[69,5,70,5],[71,0,72,0],[71,2,72,2],[71,3,72,3],[71,4,72,4],[71,5,72,5],[73,0,74,0],[73,2,74,2],[73,3,74,3],[73,4,74,4],[73,5,74,5],[75,0,76,0],[75,2,76,2],[75,3,76,3],[4,1,4,3],[10,0,30,0],[31,0,32,0],[31,2,32,2],[31,3,32,3],[0,0,0,5],[173,0,174,0],[173,2,174,2],[173,3,174,3],[173,4,174,4],[173,5,174,5],[31,4,32,4],[31,5,32,5],[5,0,6,0],[5,2,6,2],[7,2,8,2],[7,3,8,3],[7,4,8,4],[7,5,8,5],[78,0,79,0],[78,2,79,2],[78,3,79,3],[78,4,79,4],[78,5,79,5],[5,3,6,3],[5,4,6,4],[5,5,6,5],[7,0,8,0],[177,2,178,2],[177,3,178,3],[177,4,178,4],[177,5,178,5],[175,0,176,0],[175,2,176,2],[175,3,176,3],[175,4,176,4],[175,5,176,5],[88,0,89,0],[88,2,89,2],[88,3,89,3],[88,4,89,4],[88,5,89,5],[82,0,83,0],[82,2,83,2],[82,3,83,3],[82,4,83,4],[82,5,83,5],[80,0,81,0],[185,5,186,5],[187,0,188,0],[187,2,188,2],[187,3,188,3],[187,4,188,4],[187,5,188,5],[189,0,190,0],[189,2,190,2],[189,3,190,3],[189,4,190,4],[189,5,190,5],[191,3,192,3],[191,4,192,4],[191,5,192,5],[197,5,198,5],[199,0,200,0],[199,2,200,2],[199,3,200,3],[199,4,200,4],[199,5,200,5],[193,0,194,0],[193,2,194,2],[193,3,194,3],[193,4,194,4],[193,5,194,5],[195,2,196,2],[195,3,196,3],[195,4,196,4],[195,5,196,5],[197,4,198,4],[197,3,198,3],[218,0,223,0],[218,2,223,2],[218,3,223,3],[218,4,223,4],[218,5,223,5],[205,0,206,0],[205,2,206,2],[205,3,206,3],[205,4,206,4],[205,5,206,5],[207,0,208,0],[207,2,208,2],[207,3,208,3],[207,4,208,4],[207,5,208,5],[216,0,217,0],[216,2,217,2],[216,3,217,3],[216,4,217,4],[216,5,217,5],[214,0,215,0],[214,2,215,2],[214,3,215,3],[214,4,215,4],[2,0,2,5],[214,5,215,5],[209,0,210,0],[209,2,210,2],[209,3,210,3],[209,4,210,4],[209,5,210,5],[77,1,77,3],[90,1,90,3],[105,1,105,3],[201,0,202,0],[201,2,202,2],[201,3,202,3],[201,4,202,4],[201,5,202,5],[203,0,204,0],[203,2,204,2],[203,3,204,3],[203,4,204,4],[203,5,204,5],[197,0,198,0],[197,2,198,2],[191,0,192,0],[191,2,192,2]]}
["Renovation of Al-Bahja School in Al-Khales district - Diyala Governorate "]
["الكشف الخاص بمدرسة البهجة الواقعة في قضاء الخالص / ناحية المنصورية  / قرية سراجق"]
["General Note:\n1 All works according to the  instructions by the Supervision Engineer or his representative.                           \n2.All the materials and equipment's supplied by the Contractor must be of best quality (according to Iraqi standards) and in the case of equipment, in perfect working order. The Contractor must provide samples of material for testing and approval by the Supervision engineer before supplying. \n3.Removal of surplus material from site to an approved dumping area by local authorities.\n4.The Contractor must pay all the costs for the samples including any laboratory tests required."]
["#","Items Descriptions","Unit","Quantity","Unit Price","Total USD"]
["A","Concrete  Works                                                                                   "]
[1,"Supply equipment and tools to remove the fence the price include  removing of rubble and construction waste, demolition materials and obstacles the contractor shall  remove all the material  to authorized dump by the Local  Authority   as directed by the Supervising Engineer.","m3",210,0,{"$f":"D6*E6","v":0}]
[null,"تجهيزالعدد والادوات لهدم السياج وبموجب المواصفات الفنية بما في ذلك رفع الانقاض ومخلفات البناء ورفع والمواد التي تعترض الهدم  ثم التعديل والتسوية ورفع الانقاض خارج موقع العمل للمناطق المسموح بها وحسب توجيهات المهندس المشرف"]
[2,"Supply tools, equipment's to remove  the  reinforced concrete foundations   including removing all debris, sewage water, etc... which obstacle the excavation area , site preparation, leveling and lining new foundations on the ground as per  instructions of supervising engineer","m3",60,0,{"$f":"D8*E8","v":0}]
[null,"تجهيزالعدد والادوات لرفع الاسس الكونكريتية المسلحة للبناية غير المرغوب فيها وبموجب المواصفات الفنية بما في ذلك رفع الانقاض ومخلفات البناء ورفع والمواد التي تعترض الحفر وسحب المياه السطحية الاسنة ثم التعديل والتسوية ورفع الانقاض خارج موقع العمل للمناطق المسموح بها ثم التخطيط بموجب الخرائط التصميمية للاسس. وحسب توجيهات المهندس المشرف "]
[3,"Exterior Fence Works (Concrete Hollow block with 20x40 cm columns  every 4 m  and height minimum 2.0 m. Supply materials, man power and all the work requirements to construct    exterior fence around the school :","l.m.",296,0,{"$f":"D10*E10","v":0}]
[null,"اعمال السياج الخارجي(بناء بالكتل الكونكريتية (البلوك) ) مع اعمدة بابعاد (20*40 ) سم تجهيز المواد والأيدي العاملة وجميع التفاصيل اللازمة بموجب المخططات والمواصفات للعناصر التالية لإنشاء السياج الخارجي حول المدرسة:-  "]
[null,"Excavate the foundations with 60 cm width, 80 cm depth by excavator. Price includes (but not limited to) provide tools and equipment to control the water table level until completion of pouring concrete process, construction by brick under NGL,  backfilling by clean soil, adding clonidine to the back filling layers,  with all the required works to complete the Job. In case excavations exceeded the mentioned depth, the contractor will substitute the difference in height with lean concrete (1:2:4) without any additional charges"]
[null,"الحفريات الترابية للاسس حسب المخططات بعرض (0.6) م وعمق (0.8) م باستخدام الحفارة ، ويشمل السعر تجهيز المواد والمعدات اللازمة لسحب المياه الجوفية إن ظهرت لحين إكمال عملية الصب والبناء تحت مستوى التربة وردم الجوانب وكذلك يشمل اسناد جوانب الحفر ونقل مخلفات الحفر الغير ملائمة الى خارج الموقع واعادة ردم الجوانب من الخارج والداخل لغاية منسوب الارض الطبيعية بالتراب النظيف و معالجة طبقات الردم لجوانب الاسس بمحلول قاتل الأرضة وحسب المواصفات وموافقة المهندس المشرف , وفي حالة تجاوز الحفر العمق المشار اليه في المخططات يتحمل المقاول صب خرسانة ضعيفة بنسبة خلط 4:2:1 لتعويض الحفر الزائد ."]
[null,"Supply, laying  and compact a sub-base layer under the foundation not to exceed 20 cm thickness to reach 95% compaction. Each layer not to exceed 10 cm"]
[null,"تجهيز وفرش وحدل طبقات من مزيج الحصو والرمل الخابط (سبيس) بسمك لا يتجاوز 10 سم للطبقة الواحدة فوق  طبقة التربة وبسمك كلي لا يقل عن 20 سم لتعطي كثافة مساوية الى 95% من الكثافة الجافة العظمى."]
[null,"Pour 10 cm thick of lean concrete with portions 1 : 2 : 4 under the foundation. Cement used is SRC sulphat resistance concrete."]
[null,"- كونكريت عادي بنسبة خلط 4:2:1 وبسمك (10 سم) تحت الأساس كطبقة التعمية باستعمال السمنت المقاوم للاملاح. "]
[null," Supply and cast Reinforced concrete for foundation of (30x60) cm using sulphate resistant cement and (1:1.5:3) mix ratio, the work includes works of the wooden frames works , reinforcement, bitumen 20/30 Grade, and all accessories with all the required works to complete the Job. reinforcement details: 6 bars - dia. 12mm @20 layers; Tying bars dia. 10 mm @20"]
[null,"خرسانة مسلحة سمك (30) سم وعرض(60) سم باستعمال السمنت المقاوم للاملاح(C26) بنسبة خلط 3:1.5:1 يشمل السعر حديد التسليح والقوالب وطلاء اوجه الكونكريت الملامسة للتربة بالقير السيالي درجة 20/30 ومن أجود الأنواع وجميع التفاصيل اللازمة  بموجب المخططات والمواصفات لاسس السياج الخارجي.التسليح (6*12 ملم) 3 فوق و3 تحت مع اترية كل 20 سم سمك 10 ملم"]
[null,"Building 40 cm  width by using (20x20x40) cm solid blocks type A and cement –sand mortar (1:3) under foundation level, both sides of wall must be plastered by S.R.cement mortar before paint it by 2 layers of asphalt 20/30 Grade"]
[null,"البناء بالبلوك الكهربائي (20*20*40) سم الجيد القياسي ومونة السمنت المقاوم للاملاح 3:1، تحت البادلو مع عمل تدرج بعرض40 سم سافين  مع لبخ جانبي البناء بمونة السمنت المقاوم للاملاح والرمل والطلاء بطبقيتن من القير السيالي درجة 20/30 "]
[null,"foundation  (D.P.C.) : Supply and cast plain concrete 15 cm height, same as wall thickness with brick columns, mix ratio (1:1.5:3) with Sika additive"]
[null,"مانع الرطوبة : تجهيز مواد وعمل كونكريت عادي بنسبة خلط 3:1.5:1 كمانع الرطوبة (D.P.C.) باستعمال مادة السيكا سمك 15 سم وبعرض السياج مع الاعمدة الطابوقية"]
[null,"Supply and Build the wall by using (20x20x40) cm solid blocksType A and cement –sand mortar (1:3) above foundation level the work includes installation of block column of (40x40)cm dimension each 4 m, and expansion joints (double columns)  each 12 m."]
[null,"البناء باستخدام بلوك كهربائي بابعاد (20*20*40) سم الجيد القياسي  ومونة السمنت الاعتيادي 3:1، فوق البادلو مع عمل اعمدة تقوية طابوقية كل 4م وعمل مفصل تمدد كل 12م (دنك مزدوجة)"]
[null,"Concrete cover above the fence with dimensions (34x10) cm"]
[null,"صب غطاء كونكريتي فوق السياج وبابعاد (34×10)  سم "]
[null,"Plastering 20mm thick smooth-finished ready mixed plastering in two coats over one slurry coat, including all necessary angle beads and wire mesh, thickness gage, plaster stop on both sides complete,."]
[null,"اللبخ مساطربمونة السمنت والرمل (3:1) بسمك 20 ملم لجانبي الجدار وحسب ما محدد "]
[null,"Fine rendering by using white cement and crushed stone powder for both sides of plastered wall. Color to be specified by the supervising engineer"]
[null,"النثر الناعم المكبوس بالسمنت الابيض والغبرة لجانبي السياج الملبوخة بمونة السمنت وباللون الذي يحدده المهندس المشرف."]
[4," Remove the old damaged gypsum plaster for the interior walls and ceilings, if there is moisture it must be dried and painted with liquid cement mortar before applying the plaster. Gypsum plaster removal must not affect walls and ceilings structure, and according to the directions of the Supervisor Engineer.","m2",2150,0,{"$f":"D32*E32","v":0}]
[null,"تجهيز مواد العدد اللازمة والعمل على قلع البياض  القديم للجدران الداخلية والسقوف ولحد ظهور الطابوق او الكونكريت  مع تجفيف مناطق المرطوبة ان وجدت  والشربتة بمونة السمنت المقاوم والرمل شاملا السعر استخدام كافات الالات الخاصة بقلع البياض مع مراعاة عدم تضرر البناء وحسب توجيهات المهندس المشرف"]
[5,"Supply equipment and tools to remove the reinforced concrete  including the removing of rubble and construction waste, materials obstacles demolition then remove debris off-site to permitted waste areas and to cut rebar using a special cutting machines and as directed by the Supervisor Engineer"]
[null,"تجهيزالعدد والادوات لرفع الخرسانة المسلحة وبموجب المواصفات الفنية بما في ذلك رفع الانقاض ومخلفات البناء ورفع والمواد التي تعترض الهدم  ثم التعديل والتسوية ورفع الانقاض خارج موقع العمل للمناطق المسموح بها مع قطع حديد التسليح باستخدام الات القطع الخاصة  وحسب توجيهات المهندس المشرف"]
["a","Roof slab","m2",625,0,{"$f":"D36*E36","v":0}]
[null,"خرسانة سقوف"]
["b","Beams and lintels ","m3",60,0,{"$f":"D38*E38","v":0}]
[null,"خرسانة جسور و جسور فوق الابواب "]
[6,"Supply and cast reinforced concrete with compressive strength  C26 Mpa for roof  , beams,Cantilevers ,lintel beam (drop beam)  25 cm  and parapets , the work includes works of the  wooden framework, reinforcement and all accessories with all the required works to complete the Job.",{"$nulls":5}," "]
[null,"الاعمال الخرسانية فوق مستوى مانع الرطوبة"]
[null,"تجهيز مواد وصب خرسانة مسلحة (C26) باستخدام السمنت البورتلاندي الاعتيادي بنسبة خلط3:1.5:1 ويشمل السعر حديد التسليح والقوالب وجميع التفاصيل اللازمة بموجب المخططات والمواصفات للعناصر التالية:-  "]
["a","Beams, steel reinforcement :calculate quantities which is the exposed parts","m3",47,0,{"$f":"D43*E43","v":0}]
[null,"للجسور وتحتسب الذرعة للجزء المتدلي والبارز"]
["b","Roofs 20cm","m3",125,0,{"$f":"D45*E45","v":0}]
[null,"للسقوف وتحتسب الذرعة لكامل المساحة الأفقية وبسمك (20) سم"]
["c","Cantilevers  ","m3",7,0,{"$f":"D47*E47","v":0}]
[null,"المظلات (الكاسرات) وعتبات الشبابيك الخارجية "]
["d","Parapets (12x40)cm","m3",6,0,{"$f":"D49*E49","v":0}]
[null,"الستائر (مردات المياه) بعرض 12 سم وارتفاع 40 سم"]
[7,"Supply materials and tools required to completely remove the old damaged concrete tiles to identified location out of site. Removal must not affect the roof slab  structure and should be performed  under the directions of the Supervising engineer.","m2",294,0,{"$f":"D51*E51","v":0}]
[null,"تجهيز مواد والقيام بقلع الشتايكر المتضرر القديم ورفع التراب القديم خارج موقع العمل وتنظيف السطح بالكامل مع مراعاة عدم تضرر الكونكريت او العقادة من جراء الرفع وحسب توجيهات المهندس المشرف"]
["B","Roof finishing wokrs                                              أعمال أنهاءات السطح "]
[1,"Supply materials, manpower to complete the roofing works. Samples submitted to the supervising engineer for approval prior to implementation as follows:","m2",460,0,{"$f":"D54*E54","v":0}]
[null,"تجهيز جميع المواد والايدي العاملة وانجاز اعمال التسطيح كاملا وتحتسب الذرعة للمساحات الأفقية فقط يجب مصادقة المهندس المشرف على النماذج المقدمة قبل تنفيذ الفقرات. ويشمل السعرالفقرات وكما ما يلي :"]
[null,"Clean up the concrete surface completely then to fill the connection area between parapet and slab  Chamfer, then paint the slab with bitumen emulsion."]
[null,"تنظيف السطح الكونكريتي بشكل جيد جداً وعمل الحشوة المثلثية من مونة السمنت عند التقاء الستائر بالسطح والطلاء بمادة الفلنتكوت."]
[null,"Spread 2 layers of liquid asphalt grade 20/30 oppositely on the roof and parapet up to 30 cm.  "]
[null,"طلاء سطح السقف الكونكريتي بطبقتين متعاكسة  من  القير السيالي درجة (20/30) وترفع حافات القير مع مرد السطح الكونكريتي وبارتفاع 30سم ."]
[null,"Lay down 2 layers of roofing membrane 2mm thick, perpendicularly to each other. Membrane edges treated by hot asphalt. Membrane raised with the parapet."]
[null,"فرش طبقتين من اللباد الجيد سمك 2ملم لكل طبقة بصورة متعامدة فوق طبقتي القير على ان تدرز حافات اللباد بالقير الحار وترفع حافات اللباد مع مرد السطح الكونكريتي "]
[null,"Paint by 1 layer of liquid asphalt grade 20/30 above the membrane with the thickness 5mm and the edges of tar to be in the same level of the concert surface. "]
[null,"الطلاء بطبقة من القير السيالي درجة (20/30) فوق طبقتي اللباد  بسمك 5 ملم وترفع حافات القير مع مرد السطح الكونكريتي "]
[null,"5 cm layer of Styrofoam  with 20kg/m3 density covered by 2 layers of nylon layer (polyphone sheets 500 Micron) both sides"]
[null,"فرش طبقة من الواح مادة الستايروبور العازلة ذات كثافة 20 كغم \\م3 وبسمك 5 سم تغطى بطبقتين من النايلون السميك من الاسفل (فوق الزفت) ومن الاعلى."]
[null,"Spread layer of river sand not less than 5 cm"]
[null,"فرش طبقة من الزميج النهري النظيف الخالي من الشوائب وبسمك لا يقل عن 5 سم لعمل التساريح المطلوبة"]
[null,"Install 80x80x5 cm concrete tiles, joints to filled with mastic after approval from the supervising engineer. Cement mortar to be used between tiles and parapets"]
[null,"تثبيت بلاطات كونكريتية جاهزة قياس  80 × 80 × 4 سم ثم مليء الفواصل بمادة الماستك الموافق عليه من قبل المهندس المشرف  بعد اجراء الفحص , شاملا عمل حشوات من مونة السمنت عند التقاء البلاطات الكونكريتية مع الستائر"]
[2," Supply materials, tools and manpower  to remove Concrete ground  yards and slabs  including removing debris and all remnant construction subject to destruction  with all work requirements to grading and compacting and transfer the debris to a specified location out of the site by local authorities under the instruction of the Supervisor Engineer.","m2",841,0,{"$f":"D70*E70","v":0}]
[null,"تجهيزالعدد والادوات لرفع صبات الساحات والارضيات  وبموجب المواصفات الفنية بما في ذلك رفع الانقاض ورفع والمواد التي تعترض الهدم  ثم التعديل والتسوية ورفع الانقاض خارج موقع العمل للمناطق المسموح بها وحسب توجيهات المهندس المشرف"]
[2.1,"Supply the required tools and materials to cast the school's yards  by using sulphate resisting cement with 2 layers of BRC reinforced steel bars Dia not less than 6mm thick (15x15)cm wire mesh layers, (1:1.5:3) mixing ratio, with manholes each 50 m2 connected by 4 inches pipes (PVC SN8, Pressure :10 Bars) to the sewage system. Price includes spreading 2 thick nylon layer (polyphone sheets 500 Micron) , adequate elevations, required excavations and back fillings, metal side shutters.","m2",841,0,{"$f":"D72*E72","v":0}]
[null,"تجهيز مواد والمعدات للقيام بأعمال صب الساحات بسمك 15 سم مع وضغ طبقتين من مشبك حديد التسليح (BRC )  بقطر لايقل عن 6 ملم محزز و لاتزيد ابعاد الفتحات عن 15 سم بأستخدام السمنت المقاوم للأملاح وخلطة الرمل و الحصى 1:1.5:3 مع اخذ المناسيب مع عمل منهولات لكل 50 م2 باستخدام انابيب قطر 4انج بلاستك نوع سعودي ضغط 10 بار حصرا وربطها مع منظومة تصريف خارجية شاملا السعر اعمال التساريح و الحفر و الدفن و الصب و كذلك فرش طبفتين من النايلون الزراعي السميك تحت الصب و باستخدام قوالب حديدية المستخدمة في صب الطرق حسب الحاجة و حسب توجهيات المهندس المشرف"]
[3,"Supply tools and materials to remove walk ways to be prepared for  cast new one with foundations  including debris and obstacles removal away to the permitted area , preparations and leveling as directed by Supervising Engineer.","m2",180,0,{"$f":"D74*E74","v":0}]
[null,"تجهيزالعدد والادوات لرفع الممرات وصبة المماشي واسسها  وبموجب المواصفات الفنية بما في ذلك رفع الانقاض ومخلفات البناء   ورفع والمواد التي تعترض الهدم  ثم التعديل والتسوية ورفع الانقاض خارج موقع العمل للمناطق المسموح بها وحسب توجيهات المهندس المشرف"]
[4,"Pour 15 cm thick of concrete C26 reinforced by 5mm wire mesh, mix portions 1:1.5:3. Price includes (but not limited to) pouring steps, slopes, joints filled with sand and bituminous filler each 2m, laying 2 layers of thick nylon layer (polyphone sheets 500 Micron) under the slab on grade","m2",180,0,{"$f":"D76*E76","v":0}]
[null,"صب طبقة من الكونكريت المسلح (C26) بوجه صقيل وباستعمال السمنت المقاوم للاملاح وبنسبة خلط3:1.5:1 وبسمك 15 سم باستعمال طبقة من مشبك حديد التسليح 5 ملم  وكما في المخططات شاملا السعر صب ادراج المماشي والتساريح مع عمل المفاصل المطوبة كل 2م وملئها بالرمل والمادة المالئة للمفاصل (ماستك) وكذلك فرش طبقتين من النايلون الزراعي السميك بين طبقة الحصى الخابط وصبة الارضية. "]
["C","Plastering and Painting Works                                                                                   "]
[1,"Supply and   plastering the interior walls and ceilings with gypsum 20mm Thickness, using the grid for each 1m, with all work requirements including (but not limited to) using wire mesh in the damaged areas, treating walls and ceiling with liquid cement mortar before plastering. All works should be performed  according to the directions of Supervising Engineer","m2",2150,0,{"$f":"D79*E79","v":0}]
[null,"تجهيز المواد والبياض بالجص للاوجه الداخلية للجدران وللسقف الصف المتضرر سمك 20ملم باستخدام المساطر كل 1 متر مع الانهاء بطبقة من الجص الفني وبموجب المواصفات شاملا السعر نثر اوجه البناء بشربت السمنت قبل عملية البياض مع استخدام الاسلاك (الجكن واير ) في الاماكن المتضررة"]
[2,"Supply and paint emulsion paint  (Pentalitepaiant -type Yoqout , Marjan, Atlas or equivalent) the works  include   one prime coat, two putty coats for the entire painted areas and three finishing coats with the color as per supervising engineering instruction.","m2",2150,0,{"$f":"D81*E81","v":0}]
[null,"تجهيز المواد والطلاء بثلاث طبقات من الصبغ المستحلب ( البنتلايت ) من النوعية الممتازة وصبغ الجدران وكذلك السقوف المبيضة بالجص باستخدام البنتلايت 3 طبقات محلي المنشاء الى حد الاشباع ويكون اختيار اللون والتكنيك بحسب توجيهات المهندس المشرف باستخدام اصباغ نوع ياقوت او مرجان او اطلس او  مايعادلها من ناحية الجودة وحسب المواصفات الفنية (يشمل السعر كافة المعالجات اللازمة للسطوح بما يظهرها بمظهر صقيل)"]
[3,"Supply materials and tools required for complete removal of the old damaged cement mortar for the interior and exterior walls and ceilings. Cement mortar removal must not affect walls and ceiling structure, and according  the directions of the Supervising Engineer","m2",2650,0,{"$f":"D83*E83","v":0}]
[null,"تجهيز مواد والعدد اللازمة لقلع اللبخ القديم المتضرر للجدران الداخلية والخارجية والسقوف والاسيجة ولحد ظهور الطابوق او الكونكريت شاملا السعر استخدام كافات الالات الخاصة بقلع اللبخ مع مراعاة عدم تضرر البناء وحسب توجيهات المهندس المشرف"]
[4,"Cement Mortar plastering: - 20mm thick smooth-finished ready mixed plastering (cement -sand 1:3)  in two coats over one slurry coat, including   to POLISH cement mortar all the areas which will be painted by emulsion and liquid cement mortar all necessary angle beads and wire mesh, thickness gage. Price inludes spraying all building faces with Mortar Cement before plastering","m2",2650,0,{"$f":"D85*E85","v":0}]
[null,"اللبخ تجهيز مواد واكساء الجدران الخارجية للمدرسة وبضمنها الستائر والمظلات ( الكاسرات) باللبخ بمونة السمنت والرمل (3:1) بسمك 20ملم وبموجب المواصفات , ويكون اللبخ صقيل لجميع الاوجه التي يكون انهاءها بالصبغ المستحلب .شاملا السعر نثر اوجه البناء بشربت السمنت قبل عملية اللبخ"]
[5,"Supply and paint   the exterior walls, columns and walk ways by plastic paint; type Spies, BTEC or  equivalent. price includes paint with prime layer basis of the same type, appropriate color. Price must include all work requirements of refining surfaces and as directed by the Supervising Engineer.","m2",2650,0,{"$f":"D87*E87","v":0}]
[null,"تجهيز المواد والعدد اللازمة والقيام بصبغ الجدران والاعمدة والممرات الخارجية بالاصباغ البلاستيكية (خارجي)  نوع سايبس او بيتيك او ما يعادلها ويشمل السعر الطلاء بطبقه اساس اولية من نفس منشاء الصبغ وبلون مناسب وكل ما يتطلبة العمل من تصفيه وصقل السطوح وحسب توجيهات المهندس المشرف"]
[6,"Supply and paint the skirting walls up to 1.2 m height  with oil paint (local paint or equivalent), of one prime  coat(Pentalite paint) ,two putty coats for the entire painted areas undercoat layer and three finishing coats, including preparation works, putty coats all needed to complete the work","m2",1920,0,{"$f":"D89*E89","v":0}]
[null,"تجهيز المواد والعدد اللازمة والقيام بالصبغ بالاصباغ الدهنية (البوية المطفية او اللماعة) بثلاث طبقات او حد التغطية  للجدران بارتفاع 1.2 م باستخدام اصباغ الحديثة او ما يعادلها .ويشمل السعر طبقة اساس من البنتلايت العراقي المحلي واجراء كافة اعمال التصليح والصقل للجدران المتضررة  قبل عمليه الصبغ وحسب المواصفات الفنية وتوجيهات المهندس المشرف.(للجدران و لسقوف المجاميع الصحية والحانوت والمطابخ ) "]
["D","Tiling Works                                                    أعمال الكاشي                                "]
[1,"Supply materials, tools and manpower to remove ground (regular or mosaic) including removing debris with all work requirements to complete the Job.","m2",1060,0,{"$f":"D92*E92","v":0}]
[null,"تجهيزالعدد والادوات لرفع كاشي الارضيات (عادي او موزائيك ) وبموجب المواصفات الفنية بما في ذلك رفع الانقاض ومخلفات الهدم  خارج موقع العمل للمناطق المسموح بها وحسب توجيهات المهندس المشرف"]
[2,"Supply and cast reinforced concrete (BRC) 10 cm thick for  floor under tiles (15cm *15 cm) and Dia 5 mm with  mix ratio (1:2:4)and  ,using sulphate resistant cement. Price includes laying 2 layers of appropriate⁯ Naylon and all the required works to complete the Job.","m2",841,0,{"$f":"D94*E94","v":0}]
[null,"تجهيز مواد وصب طبقة كونكريت المسلح تحت الكاشي بنسبة مزج (4:2:1) وبسمك 10 سم وباستخدام الاسمنت المقاوم للاملاح  شاملا\" السعر فرش طبقتين من النايلون الزراعي السميك بين طبقة الحصى الخابط وطبقة صبة الارضية وحسب توجيه المهندس المشرف "]
[3,"Supply and install Mosaic tiles of (40X40X2)cm  number 4 , the price include but not limited to fill the joints with white cement ,  polishing the mosaic tiles and installation of 10 cm ceramic skirting, with all the required works complete the Job. ","m2",1060,0,{"$f":"D96*E96","v":0}]
[null,"تجهيز مواد وتطبيق كاشي موزائيك قياس (40×40×2) سم مجلي للارضيات بمونة السمنت والرمل (4:1) شاملا السعر الشربت بالسمنت الابيض مع الجلي الموقعي على ان يقوم المهندس المشرف بتحديد اللون وحجم الحجر المستخدم "]
[4,"Supply and install ceramic tiles (10X30X1cm) for the skeirt walls the water absorption shall be 10 to 15 % the price include  all the material needed to install , filling with white cement and  polishing","l.m.",500,0,{"$f":"E98*D98","v":0}]
[null,"تجهيز مواد وعدد وتثبيت ازارة من  السيراميك بابعاد (10×30) سم   باستعمال مونة السمنت والرمل (3:1) مع الشربتة بمونة السمنت الابيض.  ويراعى قـــص السيراميك  بــدقه وبصوره مستقيمه وفي حالة عدم توفر الابعاد المثبتة في الكشف والمخططات  على المهندس المشرف تحديد الابعاد والالوان"]
[5,"Supply tools, materials and man power to install staircase steps covers made of industrial granite with standard length applied by cement mortar with mix ratio (1:3) and white cement grout. Edges to be cut-off accurate with straight ","Ea",23,0,{"$f":"D100*E100","v":0}]
[null,"تغليف بايات الادراج\nتجهيز وتغليف بايات الادراج بأطوال قياسية (*×*×3 سم) مع المرايا بقطع جاهزة وكاملة من الكرانيت الصناعي   والتطبيق  بمونة السمنت والرمل(3:1) مع الشربتة بمونة السمنت الابيض.  ويراعى قـــص القطع   بــدقه وبصوره مستقيمه "]
[6,"Supply and install ceramic tiles (25X40X1cm) for the sanitary, kitchen and cafeteria walls.  The water absorption shall be 10 to 15 % the price include  all the material needed to install , filling with white cement and  polishing ","m2",230,0,{"$f":"D102*E102","v":0}]
[null,"تجهيز مواد واكساء جدران وقواطع المرافق الصحية الداخلية والمطبخ والحانوت  بالكاشي السيراميك باستعمال مونة السمنت والرمل (3:1) مع الشربتة بمونة السمنت الابيض. شاملا السعر تجهيز وتثبيت شرائط اركان من الالمنيوم الخاص باركان جدران السيراميك .ويراعى قـــص الكاشي بــدقه وبصوره مستقيمة . وفي حالة عدم توفر الابعاد المثبتة في الكشف والمخططات  على المهندس المشرف تحديد الابعاد والالوان"]
[7,"Supply  and install porcelain tiles anti slip for the sanitation unit floors  size (30X30X0.8 cm) , the water absorption shall be 0.5 to 0.9% , the price include the all the material needed to install , filling with white cement and  polishing the porcelain tiles and installation of 10 cm ceramic skirting, with all the required works complete the Job. . Price includes Aluminum strips at walls corners","m2",150,0,{"$f":"D104*E104","v":0}]
[null,"تجهيز مواد وعدد وتثبيت ارضية للحمامات  من  السيراميك الذي يمنع الانزلاق باستعمال مونة السمنت والرمل (3:1) مع الشربتة بمونة السمنت الابيض.  ويراعى قـــص السيراميك  بــدقه وبصوره مستقيمة. وفي حالة عدم توفر الابعاد المثبتة في الكشف والمخططات  على المهندس المشرف تحديد الابعاد والالوان"]
["E","Sanitation Works                                                                                   "]
[1,"Supply, installation, testing and commissioning of UPVC of SN8 drainage 10 bar and ventilation pipes down to manholes with all required fittings including excavation, back filling, incasing with Suleplate resistant cement concrete and roof vent caps, including connections as follow"]
[null,"تجهيز وتركيب وفحص انابيب مجاري بلاستيكيةUPVC   تتحمل ضغط 10 جو على الأقل من نوعية جيدة, مع كافة الملحقات والتقاسيم والعكوس.(سعودي او مصري الامل شريف الاصلي او ما يعادلها ) يتضمن العمل الحفريات والتغليف بالرمل النظيف من كافة الجوانب.والصب بالكونكريت وكما يلي :ـ"]
[null,"Plastic pipes, UPVC,  Dia 50ml (2 inches) ","l.m.",25,0,{"$f":"D109*E109","v":0}]
[null,"انابيب بلاستكUPVC  قطر 50 ملم (2 انج)"]
[null,"Plastic pipes, UPVC,  Dia 100ml (4 inches) ","l.m.",50,0,{"$f":"D111*E111","v":0}]
[null,"انابيب بلاستكUPVC  قطر 110 ملم (4 انج)"]
[null,"Plastic pipes, UPVC, Dia 160 ml ( 6 inches)","l.m.",30,0,{"$f":"D113*E113","v":0}]
[null,"انابيب بلاستكUPVC  قطر 160 ملم(6 انج)"]
[2,"Supply tools and materials to remove the old sewer pipes, toilet seats and all related accessories and any damaged or undesired old sanitary works. Price includes concrete demolition and removing trash off-side as directed by the supervising engineer.","no.",8,0,{"$f":"D115*E115","v":0}]
[null,"تجهيزالمواد والعدد اللازمة لقلع المجاري القديمة والمقاعد وملحقاتها من كليات وتقاسيم وعكوس وتوصيلات للمرافق الصحية واي تاسيسات صحية غير مرغوب فيها او متضررة  شاملا السعر تكسير الصب ورفع المخلفات خارج موقع العمل وحسب توجيهات المهندس المشرف"]
[3,"Supply and install White Vitreous  with  semi pedestal/ with stand   Wash Basin, size (40 *56) cm complete   with all fittings, valves, waste pipes to nearest floor   traps  , connection to water system, the price also includes the chrome mixer ,mirror,  and soap holder or any other necessary parts. \n","no.",6,0,{"$f":"D117*E117","v":0}]
[null,"تجهيز وتركيب مغاسل فرفورية بيضاء مع السداد والسلسلة والتثبيت والتوصيلات مع وضع قفلين براص/ مطلي بالكروم والخلاط منشأ تركي اصلي ثقيل والصوندة والبالوعة وتكون المغاسل من مصنوعات جيدة توافق عليها لجنة الاشراف وتكون المغاسل بالقياسات والملحقات المبينة ادناه :-مغسلة(56x40)سم مع خلاط وبراكيتات مع المرايا وحمالة الصابون"]
[4,"Supply and Install eastern type Toilet (52 * 60) cm, White,  complete with galvanized flush tank  with 32mm galvanized water pipes, chrome tap 15mm for each toilet, fitting, chrome plated 13mm stop and valve . Price to include waste pipes to nearest manhole, water pipe from the system,  painting the water tank and water pipes by oil paint and thermal white color","no.",8,0,{"$f":"D119*E119","v":0}]
[null,"تجهيز وتركيب وفحص مراحيض شرقية فرفورية من النوع العميق بيضاء او ملونة طول(52) سم على الاقل مع الكلي خزان الماء العالي من الحديد المغلون النازل من الخزان قطر (32) ملم وحنفية كروم قطر (15) ملم لكل مرحاض يطلي خزان الماء والانبوب النازل بالصبغ الدهني وباللون الابيض الحراري  وتكون المراحيض من مصنوعات جيدة وبموافقة المهندس."]
[5,"Supply materials to pour concrete manholes as the dimensions below by using SRC and mix ratio (1:1.5:3), Poly-Ethylene covers. Price includes sulphate resistance cement plastering for the exterior side before painting with asphalt 20/30 Grade, slope works in the manhole base per the required specifications"]
[null,"تجهيز المواد وصب احواض تفتيش بابعاد المبينة ادناه  ذات قاعدة وجدران كونكريتية مسلحة وباستعمال السمنت المقاوم وبنسبة خلط 3:1.5:1 مع اغطية محكمة من الاهين او البلاستك المضغوط , شاملا السعر انهاء الاسطح الخارجية باللبخ بمونة السمنت المقاوم للاملاح والرمل ثم الطلاء بمادة القير السيالي درجة 20/30  وعمل الانحدارات اللازمة في قاعدة المنهول وكما مبين في المواصفات"]
["a","40x40 cm","no.",8,0,{"$f":"D123*E123","v":0}]
[null,"40*40 سم "]
["b","50x50 cm","no.",5,0,{"$f":"D125*E125","v":0}]
[null,"50*50 سم"]
[6,"Supply and install hot and cold galvanized steel pipes sch40 first class for the (hot & cold) water supplied for Washbasins and bathrooms. Pipes installed inside walls after painting covering by glass fiber and painting with anti-corrosion with all work requirements and accessories. Samples to be submitted prior to work . Work includes walls/concrete digging  if required"]
[null,"انابيب فولاذية مغلونة"]
[null,"اولا. تاسيس ماء حار وبارد للمغاسل والحمامات  باستعمال انابيب مغلونة درجة اولى مدفونة ضمن الجدران والارضيات ومغلفة بالصوف الزجاجي مع صبغها قبل التغليف بصبغ مانع للصدأ مع استخدام  كافة المتطلبات من عكوس وتقاسيم واقفال. \nثانيا. تقدم نماذج من المواد المستعملة للموافقة المسبقة عليها. \nثالثا. يشمل السعر الحفريات مع تكسير الجدران والكونكريت اذا تطلب الامر."]
["a","Galvanized pipes with diameter1/2 inch","l.m.",80,0,{"$f":"D130*E130","v":0}]
[null,"-  انابيب مغلونة قطر 2/1 انج "]
["b"," Galvanized pipes with diameter 3/4 inch","l.m.",40,0,{"$f":"D132*E132","v":0}]
[null,"- انابيب مغلونة قطر 4/3 انج "]
[7,"Supply and install galvanized water tank of 1000-liter capacity and gage 16 plate, at the height 50 cm from the ground floor. Work includes all installation and connections with sanitary unit, cover diameter 50 cm, replacing the damaged tap,  pipes, with all the required works to complete the Job. Tank dimensions (1x1x1)m","no.",6,0,{"$f":"D134*E134","v":0}]
[null,"تجهيز ونصب وفحص خزان ماء من صفائح الحديد المغلون كيج(16) على الاقل مع قواعد خرسانية مع الشيلمان بارتفاع  50 سم عن سطح الارض او توضع على الابراج مع انبوب تفريغ وانبوب الماء الفائض مع غطاء بابعاد (قطر 50 ) سم مع طوافة اعتيادية مع عمل قفل خروج وقفل دخول لكل خزان علما ان ابعاد الخزان (1*1*1) م"]
[8,"Supply and Install Water tap - regular type- as approved by the supervisor engineer.","no.",23,0,{"$f":"D136*E136","v":0}]
[null,"حنفيات ماء اعتيادية (Water tap) نوع تركي براص وبموافقة المهندس المشرف"]
[9,"Rain drainage and ventilation pipes: Supply and install, 6 Bars plastic pipes for the rain drainage and ventilation pipes with all required fixtures and accessories. Rain drainage pipes to be installed vertically down from the roof, a sufficient slope to be set in the conection points of roof with the pipe. Pipes must be fixed metal fixers"]
[null,"تجهيز وتثبيت انابيب من البلاستك 6 جو لتصريف مياه الامطار والتهوية للمجاري مع كافة التراكيب والملحقات المطلوبة للربط على ان تمر انابيب تصريف المياه بصورة شاقولية من السطح وعمل الميل المناسب للسطح عند نقاط الالتقاء بين هذه الانابيب وسطح البناية.مع التثبيت بقفائص كل 1.5 متر باستخدام الجوي  "]
["a","Pipes for the ventilation (50)mm","l.m.",4,0,{"$f":"D140*E140","v":0}]
[null,"انابيب قطر (50) ملم للتهوية"]
["b","Pipes for the rain water (100)mm","l.m.",75,0,{"$f":"D142*E142","v":0}]
[null,"انابيب قطر (100) ملم لمياه الامطار "]
[10,"supply, install, test and operation water heater isolated type cover with painted enclosure, with heater element and heat regulator ,safety valve installing  all required pipe line with Crum locks valve to be ready to connect to electrical source trough electrical cable 3*4mm2 with earthing line and 32 amps operation switch  with power indications  lamp as below   "]
[null,"تجهيز ونصب وتشغيل سخانات ماء كهربائية من النوع المعزول المغلف بغلاف مطلي بالمينا مع عنصر التسخين ومنظم الحرارة وصمام الامان وتوصيلات الماء المرنة واقفال كروم زاوية ,بحيث تكون جاهزة للربط بالمصدر الكهربائي القريب منها باستخدام كيبل 3×4 ملم2 مع التأريض مع مفتاح التشغيل 32 امب يحتوي على مصباح اشارة وكما يلي ."]
[null,"120liter water heater ","no.",3,0,{"$f":"E146*D146","v":0}]
[null,"سخان نوع الطحان 120 لتر "]
[11,"Supply and install steel tower for the water toilets tanks by using 5 inches I section as columns and 3 inches angle shape  as horizontal beams steel sections, 50 cm cantilevers from sides with guard rail at 70 cm height for the tanks maintenance, paint by anti rust and 3 layers of oil paint. Base fixed to the ground by concrete base (1.5x3x0.15) m, mix ratio (1:2:3) with wire mesh Tower dimensions from bottom (2.5x1.2) with service ladder. service area will be concerned by jagger plate.as instructed and approved by the Supervising Engineer.","l.s.",2,0,{"$f":"D148*E148","v":0}]
[null,"عمل برج من الحديد لخزانات مياه المرافق الصحية للطلاب باستخدام حديد الشيلمان (5) انج ثقيل كاعمدة وحديد الزاوية (3) انج ثقيل كمفاصل رابطة وجسور عرضية مع عمل حافات بعرض ( 50) سم لجوانب البرج مع عمل محجر بارتفاع (70) سم لغرض صيانة الخزانات شاملا السعر الصبغ بمانع الصدأ والبوية والتثبيت بالارض بواسطة حفر اساس بعمق (60 سم ) وبابعاد (1.5*3)  والتربيع بالجلمود بسمك (10)سم ووضع طبقة تسويه بنسبة خلط (3:1) سمك (5سم) وعمل  صبة كونكريتية بنسبة خلط (3:2:1) سمك (15 سم) مع وضع طبفة من ال(بي ار سي ) سمك (6ملم) محزز ويكون البرج من الاسفل بابعاد ( 2.5 *1.2 ) م مع وجود سلم خدمي (cat leader) مع تغليف المنطقة الخدميه باستخدام حديد الجكر بليت وحسب توجيه وموافقة المهندس المشرف "]
[12,"Supply  and build the septic tank 2 rooms (3X2.55x4)m, price should include soil excavations, casting the foundation , walls and slab with 21 Mpa Sulphate resistance  Concrete , Foundation 20 cm in addition to the  10cm lean concrete and 2  steel layers of 12mm every 15cm (both direction) ,  the walls of 30 cm  with 2 steel layers of 12mm every 15cm  (both direction) and roof 20 cm with two steel  layers of 12mm every 15 cm (both direction) , also installation manhole steel covers of (60 x 60 ) cm and maintenance ladders  with all the required works to complete the Job","l.s.",1,0,{"$f":"D150*E150","v":0}]
[null,"انشاء وفحص خزانات التعفين للابعاد المبينة ادناه من الخرسانة المسلحة للقاعدة والجدران والسقف وتطلى من الخارج والداخل بطبقتين من مادة القير درجة 20/30 وباستخدام السمنت المقاوم شاملا السعر اعمال الحفريات الترابية والتربيع والقوالب وغطاء السقف وسلم داخلي للصيانة وسحب المياه عند عملية الحفر وكافة المعالجات لتنفيذ هذه الفقرة مع اغطية من الاهين قياس 60*60 سم. (4*2.55*3) م"]
["F","Steel and Wooden work :                                                                                                     "]
[1,"Supply and install hollow metal  coated sliding steel door (2X3.6)m dimension  partitioning every 20cm (4cm X 4cm x 2mm) , and covered with steel plate 1.5mm thickness on both sides the frame shall be 1.5 inch and 2mm thickness. the work  including all necessary fixings,, hinges fittings, locks with  key, glazing, insulation foam, accessories, mastic, hardware and painting with anti-rust paint and 3 layers of oil paints, locks, connections accessories, , concrete columns (50X50)cm and all the required to complete the work..","no.",1,0,{"$f":"D153*E153","v":0}]
[null,"ابواب من الحديد مع الاطار يشمل العمل كلفة ملحقات التثبيت والنرمادات والكيلون مع الطلاء وطبقة واحدة بمانع الصدا وثلاث طبقات من الاصباغ الدهنية وبموجب المخططات والمواصفات الفنية بابعاد (3.6*2) م  للباب (فردة والاخرى سلايد ) مع نقشة من الحديد تحدد بموجب مرتسم يقدم من المهندس المشرف مع السكة والبولبرنات مع صب اعمدة كونكريتية مسلحة (50 * 50  ) سم للتثبيت مع انهاءاتها وكل ما يتطلبه العمل الجيد وحسب توجيهات المهندس المشرف "]
[2,"Supply and install hollow metal  coated sliding steel door gauge 16 (2X3.6)m dimension    with 4 mm class until the middle ,partitioning every 20cm (4cm X 4cm x 2mm) , and covered with steel plate thickness on both sides the frame shall be 1.5 inch and 2mm thickness. the work  including all necessary fixings, hinges fittings, locks with  key, glazing, insulation foam, accessories, mastic, hardware and painting with anti-rust paint and 3 layers of oil paints, locks, connections accessories, , concrete columns (50X50)cm and all the required to complete the work.","m2",23,0,{"$f":"D155*E155","v":0}]
[44,"تجهيز وتثبيت ابواب حديدية نصف مزججة كبس وجهين (كيج 16) مع اطارات مكبوسة ويشمل السعر مستلزمات التثبيت والنرمادات -على ان لا تقل عن ثلاثة لكل باب واليدات والكيلونات(نوع اصلي )  من النوعية الجيدة أومن مناشئ معروفة والزجاج الابيض الشفاف سمك (4 ملم) ومصدات الابواب والصبغ بطبقتين بمانع الصدأ ثم الانهاء بالصبغ الدهني بثلاث طبقات وطبقة من الفلين كبطانة للابواب وكل ما يتطلبه العمل وبموجب المخططات والمواصفات الفنية ذات العلاقة وبموافقة المهندس المشرف"]
[3,"Supply and install hollow metal  coated sliding steel door gauge 16 (2X3.6)m dimension  partitioning every 20cm (4cm X 4cm x 2mm) , and covered with steel plate  on both sides the frame shall be 1.5 inch and 2mm thickness. the work  including all necessary fixings,, hinges fittings, locks with  key, glazing, insulation foam, accessories, mastic, hardware and painting with anti-rust paint and 3 layers of oil paints, locks, connections accessories, , concrete columns (50X50)cm and all the required to complete the work..","m2",6.5,0,{"$f":"D157*E157","v":0}]
[44,"تجهيز وتثبيت ابواب حديدية كاملة كبس وجهين (كيج 16) مع اطارات مكبوسة ويشمل السعر مستلزمات التثبيت والنرمادات -على ان لا تقل عن ثلاثة لكل باب واليدات والكيلونات(نوع اصلي )  من النوعية الجيدة أومن مناشئ معروفة والزجاج الابيض الشفاف سمك (4 ملم) ومصدات الابواب والصبغ بطبقتين بمانع الصدأ ثم الانهاء بالصبغ الدهني بثلاث طبقات وطبقة من الفلين كبطانة للابواب وكل ما يتطلبه العمل وبموجب المخططات والمواصفات الفنية ذات العلاقة وبموافقة المهندس المشرف"]
[4,"Supply tools, materials and man power to install wooden doors. Frames to be made of solid wood (Javanese) (3x6) inches, door panel to be made of two formic layers (first one is spruce wood and the final one is teak wood) from each face with filling each 12 cm and javanese wood frame cover, with external covers (3 inch)  around the door. Price includes fixing, Door locks, embossing fixed on the two door faces, or ready embossing within the teak layer, door stoppers, Sperto and Damalok finishing, according to the drawing and as directed by Supervising Engineer. ","Ea",19,0,{"$f":"D159*E159","v":0}]
[null,"الأبواب الخشبية\nتجهيز وتثبيت ابواب خشبية كاملة. الاطارات من الخشب الصلب (الجاوي) ( 3×6 ) انج والفردات كبس طبقتين من خشب المعاكس (الاولية من المعاكس الجام والنهائية الخارجية من الخشب المعاكس الصاج) من كل وجه مع حشوة كل 12 سم  مع قبلمة جاوي وتغليف قبقات خارجية ( 7 سم ) ( 3 انج) حول الباب ويشمل السعر مستلزمات التثبيت والكيلونات (اصلي )من النوعية الجيدة اومن مناشئ معروفة ونقشة بسيطة تثبت على الوجهين او نقشة جاهزة من ضمن طبقة المعاكس الصاج  ومصدات الابواب ثم الانهاء بالسبرتو والدملوك بموجب المخططات والمواصفات الفنية ذات العلاقة وبموافقة المهندس المشرف"]
[5,"P.V.C. Doors\nSupply and install PVC doors minim 30mm thick factory made panel , PVC structure of Seamless Steel tube (M.S) (19x19)mm for stiles , (15x15)mm for the top and bottom rails  , Solid frame minimum 5mm thickness and fixing the frame with 100mm long M.S screw  the price include locks, hinges, handles, stopper and all the needed accessories to complete the job","m2",13,0,{"$f":"D161*E161","v":0}]
[null,"الأبواب P.V.C\nتجهيز وتثبيت ابواب P.V.C  عمل   كاملة.باستخدام مقاطع تركية المنشاء مع  الاطارات مع الزجاج او بدون زجاج  ويشمل السعر مستلزمات التثبيت والكيلونات من النوعية الجيدة اومن مناشئ معروفة ومصدات الابواب ثم الانهاء وبموافقة المهندس المشرف واللون الذي يختاره "]
[6,"Supply and install the steel windows with guard frame, the work includes the anti-flies net, handles and glass of 5mm thickness and painting with anti-rust paints and three layers of oil paints with all accessories and work requirements to complete the Job.","m2",120,0,{"$f":"D163*E163","v":0}]
[null,"تجهيز وتثبيت شبابيك حديدية كاملة مع الأطارات ويشمل السعر مستلزمات التثبيت واليدات من البراص والزجاج الابيض الشفاف سمك (5 ملم) وسلك مانع الذباب للفردات المتحركة والصبغ بطبقتين بمانع الصدأ ثم الانهاء بالصبغ الدهني بثلاث طبقات وبموجب المخططات والمواصفات الفنية ذات العلاقة وبموافقة المهندس المشرف"]
[7,"Supply and install window protection frame by using square section steel pipe (1x1) inch, space between pipes 20 cm both sides with frame affixed on corners by (2x2) inches steel section angle shape with (1x2) inches rectangular steel cover for the angle section. price includes two layers of anti rust paint and 3 layers of oil for the final finishing according to the specifications and  as directed by the Supervising Engineer.","m2",120,0,{"$f":"D165*E165","v":0}]
[null,"كتائب الشبابيك الخارجية\nتجهيز وتثبيت كتائب حديدية كاملة للشبابيك الخارجية باستخدام بوري مربع 25 ملم المسافة بين بوري واخر 20سم افقيا 20 سم عموديا مع اطار يثبت على اركان الفتحة باستخدام حديد زاوية 2 * 2 انج مع غطاء حديد يخفي حديد الزتوية باستخدام مقطع شخاطة 1 * 2 انج ويشمل السعر مستلزمات التثبيت والصبغ بطبقتين بمانع الصدأ ثم الانهاء بالصبغ الدهني بثلاث طبقات وبموجب المخططات والمواصفات الفنية ذات العلاقة وبموافقة المهندس المشرف ."]
[8,"Supply tools, materials and man power to install (2x25) cm javanese wood panels above the construction joint for the interior entrance walls. price includes oil painting, covering the fixing bolts from one side and all the necessary details as directed by the Supervising Engineer.","l.m.",10,0,{"$f":"D167*E167","v":0}]
[null,"تجهيز المواد لتثبيت الواح من الخشب الجاوي حصرا بسمك (2)سم وعرض (25)سم على المفصل الانشائي لجدران الطارمة من الداخل شاملا السعر الصبغ بالاصباغ الدهنية ويتم التثبيت بواسطة جوي وبرغي غاطس مع غطاء له من جهة وتبقى الجهة الاخرى للمفصل سائبة وحسب توجيهات المهندس المشرف"]
[9,"Supply tools, materials and man power to install (850)mm hand rail by using 5 inches steel pipes with teak wood and steel handles, teak wood section dimensions are (100x50) mm and steel's are (50x40) mm. price includes fixing to the stair by (100x100x4) mm steel plates with all fixing fittings, oil paint, anti rust paint as directed by the supervising engineer.","l.m.",12,0,{"$f":"D169*E169","v":0}]
[null,"عمل محجر بارتفاع850ملم من الانابيب الحديدية قطر 37.5ملم مع مقابض المحجرات تتألف من المقاطع الخشبية والمعدنية المقطع الخشبي من خشب الصاج بابعاد 100*50 ملم والمقطع الحديدي بابعاد 50*40 ملم شاملا العمل التثبيت بالدرح بواسطة صفائح معدنية سمك 4 ملم بابعاد 100*100 ملم مع كافة ملحقات التثبيت والطلاء والصبغ مانع الصدأ طبقة واحدة مع الطلاء بالدهان ثلاث طبقات وحسب توجيهات المهندس المشرف"]
[10,"Supply and install ladder; steps made of jagger plate carried by 3 inches angle shape bars with 2 guard rails, painted with anti-rust and oil paint .","l.m.",10,0,{"$f":"D171*E171","v":0}]
[null,"تجهيز وعمل سلم حديدي مكون من حديد الجنل قياس (3) انج حامل للبايات من جكربليت سمك 3 ملم والمحجر من الجانبين  شاملا السعر التثبيت من الاسفل والاعلى والصبغ بمانع الصدأ قاطين قبل التركيب وبالدهان بعد التركيب وحسب المخطط التفصيلي الخاص"]
["G","Electrical  work :                                                     الأعمال الكهربائية                                                                                      "]
[1,"L.T Cables : Feeding cables copper  unarmored (PVC) isolated with grounding  suspended on the wall using cable clamps , the price including , installation of cables with all accessories ,clamps , terminal , installation according to pithing area, holding on cable tray in all external and internal , or embedding in a suitable conduit size and type 50cm under earth  according to technical specification.  "]
[null,"كابلات الضغط الواطئ:                                                                                                                            كابل مغذي نحاسي غير مسلح  معزول ومغلف بـ (PVC) مع سلك ارضي يعلق على الجدار بواسطة قفائص ومد الكابل شاملا القفائص وترامل الربط  والانهاء حسب تفاصيل المنطقة التي يمر بها  يكون محمول فوق كيبل تري فيجميع المناطق  الداخلية والخارجية  او يمر داخل بوري بلاستك منسب الحجم والنوعية ودفن تحت الارض بعمق 50سم  مع كل ما يتطلبه العمل  والمواصفات الهندسية."]
["a","cable 4X16mm2 +cable 1*10mm2","m.l ",100,0,{"$f":"E176*D176","v":0}]
[null,"كيبل 4×16 ملم2+كيبل 1*10ملم2 "]
["b","cable 4X25mm2 +cable 1*16mm2","m.l ",50,0,{"$f":"E178*D178","v":0}]
[null,"كيبل 4×25 ملم2 + كيبل 1*16ملم2"]
[2,"Main Distribution Board MDB:\nSupply, test, and operate main distribution board metal enclosure, anti-crrosion  paint with good locking door water proof dimensions (120cm *80cm 40cm) with bottom base not less than 3cm, with internal protection glass door easy to open, including metering gauges ( volt, Ampere, frequency)using bus bar size (40*5mm)3ph, including phase indicated lamps and selector switches, according to technical specification and instructions of Supervisor Engineer, the MDB will  include the following 3 phase breakers \nMCCB 250Amps /No 1\n MCCB 150Amps /No 2 \n MCCB 100Amps /No 3        ","no.",1,0,{"$f":"E180*D180","v":0}]
[null,"لوحة التوزيع الرئيسية MDB :                                                                                           تجهيز وفحص وربط وتشغيل لوحة توزيع رئيسية ذات هيكل معدني مقاوم للصدأ مع باب محكم الغلق يمنع تسرب الغبار والحشرات بابعاد لاتقل عن (120 سم ×80 سم ×40 سم ) مع قاعدة بارتفاع 30 سم وباب زجاجي داخلي سهل الفتح مع مقاييس التيار والفولتية ومفتاح اختيار الفولتية ذو بازبار بأبعاد لا تقل عن( 40×5) ملم 2ثلاثة اطوار مع مقاييس التيار والفولتية ومفتاح التحويل وكافة المتطلبات لأكمال العمل حسب موافقة المهندس المشرف .\nوتشتمل اللوحة على القواطع التالية:\nقاطع سعة ( 250 )  امبير عدد / 1\nقاطع سعة ( 150  )   امبير عدد / 2\nقاطع سعة ( 100  )  امبير عدد /  3                                                                                                                                                                                                                    "]
[3,"External Lightings:\nSupply, install, test and operation lighting fixture with all accessories holder, Trans, starter, lamps and a capacitors for power factor correction, boxes, switches, wiring using copper wires exposed or Siemens type the price includes installation boxes switches wiring, and earthing according to specification "]
[null,"تجهيز وفحص وتشغيل تراكيب انارة مع جميع ملحقاتها مثل الهولدر والجوك والستارتر والمصابيح ومكثفات تحسين معامل القدرة والصناديق والمآخذ والمفاتيح مع التسليك باستخدام اسلاك نحاسية مفردة اردني الصنع  قياس 3×2.5 ملم2 مغلفة بمادة البلاستك من النوع الجيد داخل انابيب من البلاستك و قابلوات حسب المخططات شاملة المفاتيح واسلاك التوصيل والانابيب البلاستيكية والتثبيت والتأريض ...الخ حسب المواصفات الفنية المعتمدة وكما يلي : "]
[4,"Water proof wall mounted electrical fixture with glass cover, and  economic lamp 28watt with all accessories. ","no.",30,0,{"$f":"E184*D184","v":0}]
[null,"مصباح مطري مع القاعدة والغطاء زجاجي لايتاثر بالحرارة مع مصباح اقتصادي 28 واط وجميع ملحقاته يثبت على الجدران الخارجية "]
[5,"Supply Metal box dimension 40cm *30cm including best quality photo cell and contactor , selector switch to operate external lighting manually and automatic , wiring and other installation accessories .under supervise engineers instructions control,\n  ,","no.",1,0,{"$f":"E186*D186","v":0}]
[null,"تجهيز ونصب صندوق حديد بابعاد 40سم ×30 سم  يحتوي على خلية ضوئية من منشاء جيد وكوندكترات وجوزات مع سيلكتر خاصة بتشغيل الاضائة الخارجية اوتوماتيك ويدوي واطفاء مع اسلاك الربط والتسليم كاملا وحسب توجيهات المهندس المشرف ."]
[6,"Sub  Distribution Board SDB:12 circuits \nSupply, test, and operate Sub distribution board metal enclosure, Anti-corrosion paint with good locking door water proof dimension  according to technical specification and instruction of Supervisor Engineers. The SDB will include the following breakers:                         Main MCCB 3*100 amperes \nCB 10 Amps /No 3 \nCB 16 Amps /No 3   \nCB 25 Amps /No 3\n CB 32 Amps /No 3","no.",2,0,{"$f":"E188*D188","v":0}]
[null,"لوحة التوزيع الفرعية ٍSDB : جوزة تاسيس ظاهري او دفن 12 جوزة                                                 تجهيز وفحص وربط وتشغيل لوحة توزيع الفرعية  ذات هيكل معدني مقاوم للصدأ مع باب محكم الغلق يمنع تسرب الغبار والحشرات وكافة المتطلبات لأكمال العمل وحسب توجيهات المهندس المشرف .\nوتشتمل اللوحة على القواطع التالية:                                                                                         قاطع رئيسي 3*100امبير وقواطع الفرعية \nقاطع سعة ( 10 )  امبير عدد / 3\nقاطع سعة ( 16  ) امبير عدد / 3\nقاطع سعة ( 25  ) امبير عدد / 3                                                                                           قاطع سعة ( 32  ) امبير عدد / 3"]
[7,"Sub  Distribution Board SDB: 6 circuits \nSupply, test, and operate Sub distribution board metal enclosure, Anti-corrosion paint waterproof IP 55 according to technical specification and supervise engineers instruction                 Maine Circuit 3*100 amps and sub circuit breakers . \n CB 10 Amps /No 3 \nCB 16 Amps /No 2                                                                                   CB 32 Amps /No1","No.",1,0,{"$f":"E190*D190","v":0}]
[null,"لوحة التوزيع الفرعية ٍSDB : جوزة تاسيس ظاهري او دفن 6 جوزة                                                                تجهيز وفحص وربط وتشغيل لوحة توزيع الفرعية  ذات هيكل معدني مقاوم للصدأ وكافة المتطلبات أ كمال العمل حسب موافقة المهندس المشرف .\nوتشتمل اللوحة على القواطع التالية:                                                                                   قاطع رئيسي 3*100امبير وقواطع الفرعية \nقاطع سعة (  10  ) امبير عدد /2\nقاطع سعة ( 16 )  امبير عدد / 2\nقاطع سعة ( 32  )   امبير عدد / 1"]
[8,"Socket switches :\n Supply materials, install, test and operation switch black using best quality wires Exposed or Siemens type the price includes installation boxes switches wiring, and earthing according to specification"]
[null,"نقاط مآخذ القوى بلك سويج                                                                                                   تجهيز مواد وتاسيس وفحص وتشغيل نقطة مأخذ القوى باستخدام اسلاك اردني اصليه ظاهري او وسيمنز شاملة الصناديق والمآخذ والمفاتيح واسلاك التوصيل والتثبيت والتأريض ...الخ حسب المواصفات "]
["a","13Amps socket using 3*2.5mm2 wires ","no.",24,0,{"$f":"E194*D194","v":0}]
[null,"سعة 13 امبير باستخدام اسلاك نحاسية قياس 3×2.5 ملم2     "]
["b","15Amps socket using 3*2.5mm2 wires ","no.",10,0,{"$f":"E196*D196","v":0}]
[null,"سعة 15 امبير باستخدام اسلاك نحاسية قياس 3×2.5 ملم2     "]
[9,"Lighting Fittings:  supply, install, test and operation lighting fixture with all accessories holder, Trans, starter, lamps and a capacitors for power factor correction, boxes, switches, wiring using copper wires exposed or Siemens type the price includes installation boxes switches wiring, and earthing according to specification ","no.",120,0,{"$f":"E198*D198","v":0}]
[null,"تراكيب الانارة :                                                                                                             تجهيز وفحص وتشغيل مصباح اقتصادي 105 واط عنكبوتي مع قاعدة هولدر كبيرة صالح للتثبيت على الجدار والسقف مع جميع ملحقاتها الصناديق والمآخذ والمفاتيح مع التسليك باستخدام اسلاك نحاسية ظاهرية او سيمنز دفن  قياس 3×1.5 ملم2  مغلفة بمادة البلاستك من النوع الجيد شاملة المفاتيح واسلاك التوصيل والتثبيت والتأريض ...الخ حسب المواصفات الفنية المعتمدة وكما يلي "]
[10,"Ceiling , vertical, wall types  fans  \nSupply, install, test and operation fans with all accessories demission 140cm (56inch) with installing  boxes, switches, wiring using copper wires(3*1.5mm2) Exposed or Siemens type the price includes installation boxes Regulator  wiring, and earthing according to specification. ","no.",21,0,{"$f":"E200*D200","v":0}]
[null,"المراوح السقفية والعمودية والجدارية:\nتجهيز وفحص وتشغيل مراوح  مع جميع ملحقاتها وحسب المواصفات الفنية المعتمدة بقطر 140 سم (56انج) مع التسليك باستخدام اسلاك نحاسية ظاهري او سيمنس دفن  قياس 3×1.5 ملم2 اردني  مغلفة بمادة البلاستك من النوع الجيد شاملة المنظم و الصناديق والمآخذ والمفاتيح واسلاك التوصيل والتثبيت والتأريض ...الخ\n"]
[11,"Wall mounted Exhaust fans\n Supply, install, test and commissioning Exhaust fans with all accessories demission 140cm (56inch) with installing  boxes, switches, wiring using copper wires(3*1.5mm2) Exposed or Siemens type the price includes installation boxes Regulator  wiring, inside 25mm2 PVC pipe with operation switches , earthing and Shutter dampers according to Electrical and mechanical specification.","no.",14,0,{"$f":"E202*D202","v":0}]
[null,"مفرغات الهواء الجدارية :\nتجهيز وفحص وتشغيل مفرغات الهواء الجدارية  مع جميع ملحقاتها وحسب المواصفات الفنية المعتمدة بقطر 140 سم (56انج) مع التسليك باستخدام اسلاك نحاسية ظاهري او سيمنس دفن  المنشا اردني قياس 3×1.5 ملم2 اردني  مغلفة بمادة البلاستك من النوع الجيد شاملة المنظم و الصناديق والمآخذ والمفاتيح واسلاك التوصيل والتثبيت والتأريض ...الخ داخل انابيب من البلاستك مع مفتاح التشغيل وكما موضح في المخططات والمزودة بسداد الغلق (Shutter Damper) وحسب  المواصفات الميكانيكية المعتمدة وكما يلي\n"]
[12,"Supply, install, test and operation water heater isolated type cover with painted enclosure, with heater element and heat regulator ,safety valve installing  all required pipe line with Crum locks valve to be ready to connect to electrical source through electrical cable 3*4mm2 with earthing line and 32 amps operation switch  with power indications  lamp capacity 120 Liters","no.",2,0,{"$f":"E204*D204","v":0}]
[null,"تجهيز ونصب وتشغيل سخانات ماء كهربائية من النوع المعزول المغلف بغلاف مطلي بالمينا مع عنصر التسخين ومنظم الحرارة وصمام الامان وتوصيلات الماء المرنة واقفال كروم زاوية ,بحيث تكون جاهزة للربط بالمصدر الكهربائي القريب منها باستخدام كيبل 3×4 ملم2 مع التأريض مع مفتاح التشغيل 32 امب يحتوي على مصباح اشارة سعة 120 لتر"]
[13,"supply, install, test and operation water cooler  manufactured from stainless steel sheet  plats heavy duty type capacity 75 liters/hour with cooling fan (220V 50Hz) pressing type 2Tabs  with all pipe line connection according to technical specifications .","no.",3,0,{"$f":"E206*D206","v":0}]
[null,"براد ماء من النوعية الجيدة مصنوع من صفائح الحديد الغير قابل للصدا (Stainless steel) نوعية عالية الجودة ذو خزان بسعة لاتقل عن 75 لتر بالساعة ويجب ان تتضمن برادات الماء مضخة تبريد ذات مواصفات (220فولت/50هرتز) (ذو أثنان حنفية  وحنفية (تفتح بالضغط) شامل السعر جميع التوصيلات المائية والكهربائية  "]
[14,"Supply, install, test and operate water Pump 1Hp, 1\"  Delivery Q=0.75 m3/h and Head= 15 m with mechanical water floating valve installed on the surface with all connection using 13Amps switch for operation using connection (2*1.5mm2) cable, work inlcudes fixing the concrete foundation of water pumps thickness not less than 40 cm and cage using angler steel bars closing enclosure removable for maintenance. All works shall be performed under supervising committee instruction control ","no.",3,0,{"$f":"E208*D208","v":0}]
[null,"تجهيز ونصب وفحص مضخة الماء البارد واحد حصان واحد انج (Q=0.75 m3/h  H= 15 m)  وطوافة ميكانيكية  توضع  للمستوى العالي توضع على خزان السطح مع الربط  الكهربائي وكافة الاسلاك ويشمل العمل ايضا قواعد المضخات من الكونكريت بسمك لايقل عن 40 سم مع قفص من الالمنيوم  يثبت بالبراغي ويمكن رفعه عند الصيانة مع بوابة. باستخدام سويج 13امبير باستخدام سلك (2*1.5ملم2)   قفص من حديد زاوية   يثبت بالبراغي ويمكن رفعه عند الصيانة مع بوابة   العمل ينفذ  حسب توجيه المهندس المشرف "]
[15,"Supply, install, test and operation Generator 3KVA Gasoline single phase  operation electrical starter , and manual with all required accessories , price includes connection to MDB using cable  2*6mm2 according to supervising Engineers instruction.   ","no.",1,0,{"$f":"E210*D210","v":0}]
[null,"تجهيز ونصب وتشغيل مولدة كهربائية قدرة 12  امبيرتايكر   تعمل بالبنزين وتششغيل بالسلف معا والسحب  مع كل متطلبات العمل. يكون السعر شاملا كافة أعمال الربط الكهربائي وإيصال القدرة إلى لوحة التوزيع الرئيسية MDB باستخدام كيبل 2×6 ملم2  وحسب توجيه المهندس المشرف. "]
[16,"Supply and install the Electrical Notice  Board  (1.5x0.8)m includes the name of the school.","no.",1,0,{"$f":"D212*E212","v":0}]
[null,"تجهيز مواد والعمل على تجهيز وربط لوحة ضوئية باسم المدرسة تثبت جيدا في واجهة المدرسة بابعاد (0.8×1.5) م"]
["H","                                          Air-conditioning System"]
[1,"Supply, install, test and operation A. C units free stand floor type mounted (cooling /Heating) vertical or wall mounted with all connection accessories, pipes are cover and isolated ,connecting outdoor unit with indoor unit, and other required tools and works ,as electrical protection , wiring, west water pipes  drain as shown in drawings32 amps C.B price includes man power and material using cable 3*4mm2 inside 25mm2 PVC pipe and protect , make a cage for outdoor units   \n"]
[null,"تجهيز,نصب,تشغيل و فحص وحدة تكييفAir Conditioner Split Unit - Free Stand Floor Mounted -Cooling/Heating    (كنتوري او جداري) كاملة غير منقوصة مع أنابيبها المغلفة والمعزولة الواصلة بين الوحدة الخارجية والداخلية ,كما تحتوي على تدفئة مع كافة الأعمال الضرورية مثل الحماية الكهربائية ,أسلاك السيطرة ,التوصيلات الكهربائية ,الربط بمصدر القدرة وأنابيب تصريف الماء المتكثف Drain وكما ورد في المخططات وحسب المواصفات مع أجهزة الحماية الكهربائية \nوتجهيز قاطع دورة سعة 32امبير ذا منشا انكليزي اصلي ويشمل السعر اجور التاسيس [باستعمال اسلاك قياس (3*4) ملم2 تمرر داخل انابيب بلاستيكيةوجهاز الحماية نوع منوار مع القفص للوحدة الخارجية والتثبيت او التعليق بالجدار .وكما يلي\n"]
[104," Wall mounted 2400BTU Cooling and Heating type    ","no.",7,0,{"$f":"E217*D217","v":0}]
[null,"2طن تدفئة(2400 BTU) تبريد(2400BTU) نوع الحافظ بلازمه (جداري)"]
[2,"Supply and install water filter (water cleaning device RO 50GTDS) a fifth stage of cleaning with water storage , connection and installation pipes to water coolant and outlet , supply 10 spear filter for each .stage of filtration alterable delivers to school administration.","no.",1,0,{"$f":"E219*D219","v":0}]
[null,"First stage: sediment filter\nSecond Stage: granular activated carbon sediment filters C85.\nThird stage: color correction filter CTO.\nFourth stage: membrane filter 50G RO \nFifth stage: last activated carbon filter \nStorage: 3.2G "]
[null,"                                                          Tabs :stain less steel reversed tab "]
[null,"Pump: SML -880680PSI 12 GPM"]
[null,"Electrical transformer: 24V /1.2Amp  "]
[null,"    تجهيز ونصب مرشح ماء  (جهاز تنقية الماء RO بدرجة 50  G TDS)  ذو خمس مراحل  مع الخزان والربط والتثبيت وايصال انبوب الصرف اقرب كلي والخروج الى البراد شاملا السعر  تجهيز فلاتر عدد 10 من كل نوع فلتر قابل للتبديل تسلم الى ادارة المدرسة.                                    المرحلة الاولى: مرشح الرواسب5µm PP بدقة 5 ميكرون \nالمرحلة الثانية: مرشح الكربون المنشط الحبيبي C85\nالمرحلة الثالثة: مرشح تصحيح الألوان CTO\nالمرحلة الرابعة: الغشاء الترشيحي  50G RO                                                                              المرحلة الخامسة: مرشح الكربون المنشط الأخير \nالخزان: 3.2G\nالحنفية: حنفية الفولاذ المقاوم للصدأ (ستانلس ستيل) المعقوفة\nالمضخة: SML-8806 80 PSI/0.12 GPM\nالمحول الكهربائي: 24V/1.2 A"]
["           Total Cost estimation for Al-Bahja School:",{"$nulls":4},{"$f":"SUM(F6:F224)","v":0}]